Workbook

Sheet PDF Information
A1: Path to PDF File | B1: D:\D.Dropbox\Dropbox\Work\0342.pdf
A2: Path to Shell Command | B2: C:\Program Files (x86)\Adobe\Reader 11.0\Reader\AcroRd32.exe
E4: Job_ID | F4: =IFERROR(INDEX((RIGHT($A$4:$A$560,LEN(INDEX($A$4:$A$560,MATCH(E4&"*",$A$4:$A$560,)))-LEN(E4)-1)),MATCH(E4&"*",$A$4:$A$560,)),"") ->  | V4: Date Reference
E5: Employer | F5: =IFERROR(INDEX((RIGHT($A$4:$A$560,LEN(INDEX($A$4:$A$560,MATCH(E5&"*",$A$4:$A$560,)))-LEN(E5)-1)),MATCH(E5&"*",$A$4:$A$560,)),"") ->  | V5: =CONCATENATE(A5," ",B5," ",C5," ",D5) -> 
E6: Pay roll | F6: =IFERROR(INDEX((RIGHT($A$4:$A$560,LEN(INDEX($A$4:$A$560,MATCH(E6&"*",$A$4:$A$560,)))-LEN(E6)-1)),MATCH(E6&"*",$A$4:$A$560,)),"") ->  | V6: =CONCATENATE(A6," ",B6," ",C6," ",D6) -> 
E7: RT Person | F7: =IFERROR(INDEX((RIGHT($A$4:$A$560,LEN(INDEX($A$4:$A$560,MATCH(E7&"*",$A$4:$A$560,)))-LEN(E7)-1)),MATCH(E7&"*",$A$4:$A$560,)),"") -> 
E8: RT Location | F8: =IFERROR(INDEX((RIGHT($A$4:$A$560,LEN(INDEX($A$4:$A$560,MATCH(E8&"*",$A$4:$A$560,)))-LEN(E8)-1)),MATCH(E8&"*",$A$4:$A$560,)),"") -> 
E9: Date | F9: Tuesday October 28, 2013
E10: Pension | F10: =IFERROR(INDEX((RIGHT($A$4:$A$560,LEN(INDEX($A$4:$A$560,MATCH(E10&"*",$A$4:$A$560,)))-LEN(E10)-1)),MATCH(E10&"*",$A$4:$A$560,)),"") -> 
E11: Health&Welfare | F11: =IFERROR(INDEX((RIGHT($A$4:$A$560,LEN(INDEX($A$4:$A$560,MATCH(E11&"*",$A$4:$A$560,)))-LEN(E11)-1)),MATCH(E11&"*",$A$4:$A$560,)),"") -> 
E12: Training Trust | F12: =IFERROR(INDEX((RIGHT($A$4:$A$560,LEN(INDEX($A$4:$A$560,MATCH(E12&"*",$A$4:$A$560,)))-LEN(E12)-1)),MATCH(E12&"*",$A$4:$A$560,)),"") -> 
O13: # | T13: Position
E14: $ | F14: =IFERROR(INDEX(A14,MATCH(E14&"*",A14,)),"-") -> - | G14: =IF(F14="-","",LEFT(F14,6)) ->  | H14: =MID(F14,8,50) ->  | J14: =IF(F14="-","-",LEFT(F14,6)) -> - | K14: =I14 -> 0 | L14: =IF(F14="-","",B14) ->  | O14: 1 | P14: =IFERROR(INDEX((LEFT($A$4:$A$700,LEN(INDEX($A$4:$A$700,MATCH(O14&"*",$A$4:$A$700,)))-LEN(O14)-1)),MATCH(O14&" *",$A$4:$A$700,)),"") ->  | Q14: =IFERROR(RIGHT(P14,(LEN(P14)-(LEN(O14)+1))),"") ->  | R14: =IFERROR(IF(Q14="","",FIND(" AM ",Q14)),0) ->  | S14: =IFERROR(IF(Q14="","",FIND(" PM ",Q14)),0) ->  | T14: =IFERROR(IF(AND(R14=0,S14=0),Q14,IF(R14>0,LEFT(Q14,R14-6),LEFT(Q14,S14-6))),"") -> 
E15: $ | F15: - | G15: =IF(F15="-","",LEFT(F15,6)) ->  | J15: - | K15: 0 | O15: 2 | P15: =IFERROR(INDEX((LEFT($A$4:$A$700,LEN(INDEX($A$4:$A$700,MATCH(O15&"*",$A$4:$A$700,)))-LEN(O15)-1)),MATCH(O15&" *",$A$4:$A$700,)),"") ->  | Q15: =IFERROR(RIGHT(P15,(LEN(P15)-(LEN(O15)+1))),"") ->  | R15: =IFERROR(IF(Q15="","",FIND(" AM ",Q15)),0) ->  | S15: =IFERROR(IF(Q15="","",FIND(" PM ",Q15)),0) ->  | T15: =IFERROR(IF(AND(R15=0,S15=0),Q15,IF(R15>0,LEFT(Q15,R15-6),LEFT(Q15,S15-6))),"") -> 
E16: $ | F16: - | J16: - | K16: 0 | O16: 3
E17: $ | F17: - | J17: - | K17: 0 | O17: 4
E18: $ | F18: - | J18: - | K18: 0 | O18: 5
E19: $ | F19: - | J19: - | K19: 0 | O19: 6
E20: $ | F20: - | J20: - | K20: 0 | O20: 7
E21: $ | F21: - | J21: - | K21: 0 | O21: 8
E22: $ | F22: - | J22: - | K22: 0 | O22: 9
E23: $ | F23: - | J23: - | K23: 0 | O23: 10
E24: $ | F24: - | J24: - | K24: 0 | O24: 11
E25: $ | F25: - | J25: - | K25: 0 | O25: 12
E26: $ | F26: - | J26: - | K26: 0 | O26: 13
E27: $ | F27: - | J27: - | K27: 0 | O27: 14
E28: $ | F28: - | J28: - | K28: 0 | O28: 15
E29: $ | F29: - | H29: =MID(F29,8,50) ->  | J29: - | K29: 0 | O29: 16
E30: $ | F30: - | H30: =MID(F30,8,50) ->  | J30: - | K30: 0 | O30: 17
E31: $ | F31: - | J31: - | K31: 0 | O31: 18
E32: $ | F32: - | J32: - | K32: 0 | O32: 19
E33: $ | F33: - | J33: - | K33: 0 | O33: 20
E34: $ | F34: - | J34: - | K34: 0 | O34: 21
E35: $ | F35: - | J35: - | K35: 0 | O35: 22
E36: $ | F36: - | J36: - | K36: 0 | O36: 23
E37: $ | F37: - | J37: - | K37: 0 | O37: 24
E38: $ | F38: - | J38: - | K38: 0 | O38: 25
E39: $ | F39: - | J39: - | K39: 0 | O39: 26
E40: $ | F40: - | J40: - | K40: 0 | O40: 27
E41: $ | F41: - | J41: - | K41: 0 | O41: 28
E42: $ | F42: - | J42: - | K42: 0 | O42: 29
E43: $ | F43: - | J43: - | K43: 0 | O43: 30
E44: $ | F44: - | J44: - | K44: 0 | O44: 31
E45: $ | F45: - | J45: - | K45: 0 | O45: 32
E46: $ | F46: =IFERROR(INDEX(A46,MATCH(E46&"*",A46,)),"-") -> - | J46: - | K46: 0 | L46: =IF(F46="-","",B46) ->  | O46: 33
E47: $ | F47: - | J47: - | K47: 0 | O47: 34
E48: $ | F48: - | J48: - | K48: 0 | O48: 35
E49: $ | F49: - | J49: - | K49: 0 | O49: 36
E50: $ | F50: - | J50: - | K50: 0 | O50: 37
E51: $ | F51: - | J51: - | K51: 0 | O51: 38
E52: $ | F52: - | J52: - | K52: 0 | O52: 39
E53: $ | F53: - | J53: - | K53: 0 | O53: 40
E54: $ | F54: - | J54: - | K54: 0 | O54: 41
E55: $ | F55: - | J55: - | K55: 0 | O55: 42
E56: $ | F56: - | J56: - | K56: 0 | O56: 43
E57: $ | F57: - | J57: - | K57: 0 | O57: 44
E58: $ | F58: - | J58: - | K58: 0 | O58: 45
E59: $ | F59: - | J59: - | K59: 0 | O59: 46
E60: $ | F60: - | J60: - | K60: 0 | O60: 47
E61: $ | F61: - | J61: - | K61: 0 | O61: 48
E62: $ | F62: - | J62: - | K62: 0 | O62: 49
E63: $ | F63: - | J63: - | K63: 0 | O63: 50
E64: $ | F64: - | J64: - | K64: 0 | O64: 51
E65: $ | F65: - | J65: - | K65: 0 | O65: 52
E66: $ | F66: - | J66: - | K66: 0 | O66: 53
E67: $ | F67: - | J67: - | K67: 0 | O67: 54
E68: $ | F68: - | J68: - | K68: 0 | O68: 55
E69: $ | F69: - | J69: - | K69: 0 | O69: 56
E70: $ | F70: - | J70: - | K70: 0 | O70: 57 | V70: =CONCATENATE(A70," ",B70," ",C70," ",D70) -> 
E71: $ | F71: - | J71: - | K71: 0 | O71: 58
E72: $ | F72: - | J72: - | K72: 0 | O72: 59
E73: $ | F73: - | J73: - | K73: 0 | O73: 60
E74: $ | F74: - | J74: - | K74: 0 | O74: 61
E75: $ | F75: - | J75: - | K75: 0 | O75: 62
E76: $ | F76: - | J76: - | K76: 0 | O76: 63
E77: $ | F77: - | J77: - | K77: 0 | O77: 64
E78: $ | F78: =IFERROR(INDEX(A78,MATCH(E78&"*",A78,)),"-") -> - | J78: =IF(F78="-","-",LEFT(F78,6)) -> - | K78: =I78 -> 0 | L78: =IF(F78="-","",B78) -> 
E79: $ | F79: - | G79: =IF(F79="-","",LEFT(F79,6)) ->  | J79: - | K79: 0
E80: $ | F80: - | J80: - | K80: 0
E81: $ | F81: - | J81: - | K81: 0
E82: $ | F82: - | J82: - | K82: 0
E83: $ | F83: - | J83: - | K83: 0
E84: $ | F84: - | J84: - | K84: 0
E85: $ | F85: - | J85: - | K85: 0
E86: $ | F86: - | J86: - | K86: 0
E87: $ | F87: - | J87: - | K87: 0
E88: $ | F88: - | J88: - | K88: 0
E89: $ | F89: - | J89: - | K89: 0
E90: $ | F90: - | J90: - | K90: 0
E91: $ | F91: - | J91: - | K91: 0
E92: $ | F92: - | J92: - | K92: 0
E93: $ | F93: - | J93: - | K93: 0
E94: $ | F94: - | H94: =MID(F94,8,50) ->  | J94: - | K94: 0
E95: $ | F95: - | J95: - | K95: 0
E96: $ | F96: - | J96: - | K96: 0
E97: $ | F97: - | J97: - | K97: 0
E98: $ | F98: - | J98: - | K98: 0
E99: $ | F99: - | J99: - | K99: 0
E100: $ | F100: - | J100: - | K100: 0
E101: $ | F101: - | J101: - | K101: 0
E102: $ | F102: - | J102: - | K102: 0
E103: $ | F103: - | J103: - | K103: 0
E104: $ | F104: - | J104: - | K104: 0
E105: $ | F105: - | J105: - | K105: 0
E106: $ | F106: - | J106: - | K106: 0
E107: $ | F107: - | J107: - | K107: 0
E108: $ | F108: - | J108: - | K108: 0
E109: $ | F109: - | J109: - | K109: 0
E110: $ | F110: =IFERROR(INDEX(A110,MATCH(E110&"*",A110,)),"-") -> - | J110: - | K110: 0 | L110: =IF(F110="-","",B110) -> 
E111: $ | F111: - | J111: - | K111: 0
E112: $ | F112: - | J112: - | K112: 0
E113: $ | F113: - | J113: - | K113: 0
E114: $ | F114: - | J114: - | K114: 0
E115: $ | F115: - | J115: - | K115: 0
E116: $ | F116: - | J116: - | K116: 0
E117: $ | F117: - | J117: - | K117: 0
E118: $ | F118: - | J118: - | K118: 0
E119: $ | F119: - | J119: - | K119: 0
E120: $ | F120: - | J120: - | K120: 0
E121: $ | F121: - | J121: - | K121: 0
E122: $ | F122: - | J122: - | K122: 0
E123: $ | F123: - | J123: - | K123: 0
E124: $ | F124: - | J124: - | K124: 0
E125: $ | F125: - | J125: - | K125: 0
E126: $ | F126: - | J126: - | K126: 0
E127: $ | F127: - | J127: - | K127: 0
E128: $ | F128: - | J128: - | K128: 0
E129: $ | F129: - | J129: - | K129: 0
E130: $ | F130: - | J130: - | K130: 0
E131: $ | F131: - | J131: - | K131: 0
E132: $ | F132: - | J132: - | K132: 0
E133: $ | F133: - | J133: - | K133: 0
E134: $ | F134: - | J134: - | K134: 0 | V134: =CONCATENATE(A134," ",B134," ",C134," ",D134) -> 
E135: $ | F135: - | J135: - | K135: 0
E136: $ | F136: - | J136: - | K136: 0
E137: $ | F137: - | J137: - | K137: 0
E138: $ | F138: - | J138: - | K138: 0
E139: $ | F139: - | J139: - | K139: 0
E140: $ | F140: - | J140: - | K140: 0
E141: $ | F141: - | J141: - | K141: 0
E142: $ | F142: =IFERROR(INDEX(A142,MATCH(E142&"*",A142,)),"-") -> - | J142: =IF(F142="-","-",LEFT(F142,6)) -> - | K142: =I142 -> 0 | L142: =IF(F142="-","",B142) -> 
E143: $ | F143: - | G143: =IF(F143="-","",LEFT(F143,6)) ->  | J143: - | K143: 0
E144: $ | F144: - | J144: - | K144: 0
E145: $ | F145: - | J145: - | K145: 0
E146: $ | F146: - | J146: - | K146: 0
E147: $ | F147: - | J147: - | K147: 0
E148: $ | F148: - | J148: - | K148: 0
E149: $ | F149: - | J149: - | K149: 0
E150: $ | F150: - | J150: - | K150: 0
E151: $ | F151: - | J151: - | K151: 0
E152: $ | F152: - | J152: - | K152: 0
E153: $ | F153: - | J153: - | K153: 0
E154: $ | F154: - | J154: - | K154: 0
E155: $ | F155: - | J155: - | K155: 0
E156: $ | F156: - | J156: - | K156: 0
E157: $ | F157: - | J157: - | K157: 0
E158: $ | F158: - | H158: =MID(F158,8,50) ->  | J158: - | K158: 0
E159: $ | F159: - | J159: - | K159: 0
E160: $ | F160: - | J160: - | K160: 0
E161: $ | F161: - | J161: - | K161: 0
E162: $ | F162: - | J162: - | K162: 0
E163: $ | F163: - | J163: - | K163: 0
E164: $ | F164: - | J164: - | K164: 0
E165: $ | F165: - | J165: - | K165: 0
E166: $ | F166: - | J166: - | K166: 0
E167: $ | F167: - | J167: - | K167: 0
E168: $ | F168: - | J168: - | K168: 0
E169: $ | F169: - | J169: - | K169: 0
E170: $ | F170: - | J170: - | K170: 0
E171: $ | F171: - | J171: - | K171: 0
E172: $ | F172: - | J172: - | K172: 0
E173: $ | F173: - | J173: - | K173: 0
E174: $ | F174: =IFERROR(INDEX(A174,MATCH(E174&"*",A174,)),"-") -> - | J174: - | K174: 0 | L174: =IF(F174="-","",B174) -> 
E175: $ | F175: - | J175: - | K175: 0
E176: $ | F176: - | J176: - | K176: 0
E177: $ | F177: - | J177: - | K177: 0
E178: $ | F178: - | J178: - | K178: 0
E179: $ | F179: - | J179: - | K179: 0
E180: $ | F180: - | J180: - | K180: 0
E181: $ | F181: - | J181: - | K181: 0
E182: $ | F182: - | J182: - | K182: 0
E183: $ | F183: - | J183: - | K183: 0
E184: $ | F184: - | J184: - | K184: 0
E185: $ | F185: - | J185: - | K185: 0
E186: $ | F186: - | J186: - | K186: 0
E187: $ | F187: - | J187: - | K187: 0
E188: $ | F188: - | J188: - | K188: 0
E189: $ | F189: - | J189: - | K189: 0
E190: $ | F190: - | J190: - | K190: 0
E191: $ | F191: - | J191: - | K191: 0
E192: $ | F192: - | J192: - | K192: 0
E193: $ | F193: - | J193: - | K193: 0
E194: $ | F194: - | J194: - | K194: 0
E195: $ | F195: - | J195: - | K195: 0
E196: $ | F196: - | J196: - | K196: 0
E197: $ | F197: - | J197: - | K197: 0
E198: $ | F198: - | J198: - | K198: 0 | V198: =CONCATENATE(A198," ",B198," ",C198," ",D198) -> 
E199: $ | F199: - | J199: - | K199: 0
E200: $ | F200: - | J200: - | K200: 0
E201: $ | F201: =IFERROR(INDEX(A201,MATCH(E201&"*",A201,)),"-") -> - | G201: =IF(F201="-","",LEFT(F201,6)) ->  | H201: =MID(F201,8,50) ->  | J201: =IF(F201="-","-",LEFT(F201,6)) -> - | K201: =I201 -> 0 | L201: =IF(F201="-","",B201) -> 
... 499 more rows

Sheet Wage and Name
A1: # | B1: Wage | C1: First Name

Sheet Filtered Information
A1: Number of slots required | B1: =MAX(A3:A66) -> 0 | C1: Date value | D1: =DATEVALUE(O1) -> 2013-10-28 | O1: =CONCATENATE(T1,"/",P1,"/",W1) -> 28/10/2013 | P1: =SUM(P3:P14) -> 10 | T1: =SUM(T3:T82) -> 28 | W1: =SUM(W3:W9) -> 2013
A2: # | B2: Wage | C2: First Name | D2: Last Name | E2: Position | O2: Month | P2: Month # | Q2: Day | R2: YES/NO | T2: Date | U2: Year | V2: YES/NO | W2: Year
A3: =IF(ISBLANK(B3),"-",1) -> - | O3: January | P3: =IFERROR(IF(FIND(O3,'PDF Information'!$F$9)>0,1,""),"") ->  | Q3: 1 | R3: =IFERROR(IF(FIND(" 1 ",'PDF Information'!$F$9)>0,1,""),"") ->  | T3: =IF(R3="","",Q3*R3) ->  | U3: 2013 | V3: =IFERROR(IF(FIND(U3,'PDF Information'!$F$9)>0,1,""),"") -> 1 | W3: =IF(V3="","",V3*U3) -> 2013
A4: =IF(ISBLANK(B4),"",A3+1) ->  | O4: February | P4: =IFERROR(IF(FIND(O4,'PDF Information'!$F$9)>0,2,""),"") ->  | Q4: 2 | R4: =IFERROR(IF(FIND(" 2 ",'PDF Information'!$F$9)>0,1,""),"") ->  | U4: 2014 | V4: =IFERROR(IF(FIND(U4,'PDF Information'!$F$9)>0,1,""),"") ->  | W4: =IF(V4="","",V4*U4) -> 
A5: =IF(ISBLANK(B5),"",A4+1) ->  | O5: March | P5: =IFERROR(IF(FIND(O5,'PDF Information'!$F$9)>0,3,""),"") ->  | Q5: 3 | R5: =IFERROR(IF(FIND(" 3 ",'PDF Information'!$F$9)>0,1,""),"") ->  | U5: 2015 | V5: =IFERROR(IF(FIND(U5,'PDF Information'!$F$9)>0,1,""),"") ->  | W5: =IF(V5="","",V5*U5) -> 
O6: April | P6: =IFERROR(IF(FIND(O6,'PDF Information'!$F$9)>0,4,""),"") ->  | Q6: 4 | R6: =IFERROR(IF(FIND(" 4 ",'PDF Information'!$F$9)>0,1,""),"") ->  | U6: 2016 | V6: =IFERROR(IF(FIND(U6,'PDF Information'!$F$9)>0,1,""),"") -> 
O7: May | P7: =IFERROR(IF(FIND(O7,'PDF Information'!$F$9)>0,5,""),"") ->  | Q7: 5 | R7: =IFERROR(IF(FIND(" 5 ",'PDF Information'!$F$9)>0,1,""),"") ->  | U7: 2017 | V7: =IFERROR(IF(FIND(U7,'PDF Information'!$F$9)>0,1,""),"") -> 
O8: June | P8: =IFERROR(IF(FIND(O8,'PDF Information'!$F$9)>0,6,""),"") ->  | Q8: 6 | R8: =IFERROR(IF(FIND(" 6 ",'PDF Information'!$F$9)>0,1,""),"") ->  | U8: 2018 | V8: =IFERROR(IF(FIND(U8,'PDF Information'!$F$9)>0,1,""),"") -> 
O9: July | P9: =IFERROR(IF(FIND(O9,'PDF Information'!$F$9)>0,7,""),"") ->  | Q9: 7 | R9: =IFERROR(IF(FIND(" 7 ",'PDF Information'!$F$9)>0,1,""),"") ->  | U9: 2019 | V9: =IFERROR(IF(FIND(U9,'PDF Information'!$F$9)>0,1,""),"") -> 
O10: August | P10: =IFERROR(IF(FIND(O10,'PDF Information'!$F$9)>0,8,""),"") ->  | Q10: 8 | R10: =IFERROR(IF(FIND(" 8 ",'PDF Information'!$F$9)>0,1,""),"") ->  | U10: 2020 | V10: =IFERROR(IF(FIND(U10,'PDF Information'!$F$9)>0,1,""),"") -> 
O11: September | P11: =IFERROR(IF(FIND(O11,'PDF Information'!$F$9)>0,9,""),"") ->  | Q11: 9 | R11: =IFERROR(IF(FIND(" 9 ",'PDF Information'!$F$9)>0,1,""),"") -> 
O12: October | P12: =IFERROR(IF(FIND(O12,'PDF Information'!$F$9)>0,10,""),"") -> 10 | Q12: 10 | R12: =IFERROR(IF(FIND(" 10 ",'PDF Information'!$F$9)>0,1,""),"") -> 
O13: November | P13: =IFERROR(IF(FIND(O13,'PDF Information'!$F$9)>0,11,""),"") ->  | Q13: 11 | R13: =IFERROR(IF(FIND(" 11 ",'PDF Information'!$F$9)>0,1,""),"") -> 
O14: December | P14: =IFERROR(IF(FIND(O14,'PDF Information'!$F$9)>0,12,""),"") ->  | Q14: 12 | R14: =IFERROR(IF(FIND(" 12 ",'PDF Information'!$F$9)>0,1,""),"") -> 
Q15: 13 | R15: =IFERROR(IF(FIND(" 13 ",'PDF Information'!$F$9)>0,1,""),"") -> 
Q16: 14 | R16: =IFERROR(IF(FIND(" 14 ",'PDF Information'!$F$9)>0,1,""),"") -> 
Q17: 15 | R17: =IFERROR(IF(FIND(" 15 ",'PDF Information'!$F$9)>0,1,""),"") -> 
Q18: 16 | R18: =IFERROR(IF(FIND(" 16 ",'PDF Information'!$F$9)>0,1,""),"") -> 
Q19: 17 | R19: =IFERROR(IF(FIND(" 17 ",'PDF Information'!$F$9)>0,1,""),"") -> 
Q20: 18 | R20: =IFERROR(IF(FIND(" 18 ",'PDF Information'!$F$9)>0,1,""),"") -> 
Q21: 19 | R21: =IFERROR(IF(FIND(" 19 ",'PDF Information'!$F$9)>0,1,""),"") -> 
Q22: 20 | R22: =IFERROR(IF(FIND(" 20 ",'PDF Information'!$F$9)>0,1,""),"") -> 
Q23: 21 | R23: =IFERROR(IF(FIND(" 21 ",'PDF Information'!$F$9)>0,1,""),"") -> 
Q24: 22 | R24: =IFERROR(IF(FIND(" 22 ",'PDF Information'!$F$9)>0,1,""),"") -> 
Q25: 23 | R25: =IFERROR(IF(FIND(" 23 ",'PDF Information'!$F$9)>0,1,""),"") -> 
Q26: 24 | R26: =IFERROR(IF(FIND(" 24 ",'PDF Information'!$F$9)>0,1,""),"") -> 
Q27: 25 | R27: =IFERROR(IF(FIND(" 25 ",'PDF Information'!$F$9)>0,1,""),"") -> 
Q28: 26 | R28: =IFERROR(IF(FIND(" 26 ",'PDF Information'!$F$9)>0,1,""),"") -> 
Q29: 27 | R29: =IFERROR(IF(FIND(" 27 ",'PDF Information'!$F$9)>0,1,""),"") -> 
Q30: 28 | R30: =IFERROR(IF(FIND(" 28 ",'PDF Information'!$F$9)>0,1,""),"") -> 
Q31: 29 | R31: =IFERROR(IF(FIND(" 29 ",'PDF Information'!$F$9)>0,1,""),"") -> 
Q32: 30 | R32: =IFERROR(IF(FIND(" 30 ",'PDF Information'!$F$9)>0,1,""),"") -> 
Q33: 31 | R33: =IFERROR(IF(FIND(" 31 ",'PDF Information'!$F$9)>0,1,""),"") -> 
Q34: 01 | R34: =IFERROR(IF(FIND(" 01 ",'PDF Information'!$F$9)>0,1,""),"") -> 
Q35: 02 | R35: =IFERROR(IF(FIND(" 02 ",'PDF Information'!$F$9)>0,1,""),"") -> 
Q36: 03 | R36: =IFERROR(IF(FIND(" 03 ",'PDF Information'!$F$9)>0,1,""),"") -> 
Q37: 04 | R37: =IFERROR(IF(FIND(" 04 ",'PDF Information'!$F$9)>0,1,""),"") -> 
Q38: 05 | R38: =IFERROR(IF(FIND(" 05 ",'PDF Information'!$F$9)>0,1,""),"") -> 
Q39: 06 | R39: =IFERROR(IF(FIND(" 06 ",'PDF Information'!$F$9)>0,1,""),"") -> 
Q40: 07 | R40: =IFERROR(IF(FIND(" 07 ",'PDF Information'!$F$9)>0,1,""),"") -> 
Q41: 08 | R41: =IFERROR(IF(FIND(" 08 ",'PDF Information'!$F$9)>0,1,""),"") -> 
Q42: 09 | R42: =IFERROR(IF(FIND(" 09 ",'PDF Information'!$F$9)>0,1,""),"") -> 
Q43: 1, | R43: =IFERROR(IF(FIND(" 1, ",'PDF Information'!$F$9)>0,1,""),"") ->  | S43: 1 | T43: =IF(R43="","",S43*R43) -> 
Q44: 2, | R44: =IFERROR(IF(FIND(" 2, ",'PDF Information'!$F$9)>0,1,""),"") ->  | S44: 2 | T44: =IF(R44="","",S44*R44) -> 
Q45: 3, | R45: =IFERROR(IF(FIND(" 3, ",'PDF Information'!$F$9)>0,1,""),"") ->  | S45: 3
Q46: 4, | R46: =IFERROR(IF(FIND(" 4, ",'PDF Information'!$F$9)>0,1,""),"") ->  | S46: 4
Q47: 5, | R47: =IFERROR(IF(FIND(" 5, ",'PDF Information'!$F$9)>0,1,""),"") ->  | S47: 5
Q48: 6, | R48: =IFERROR(IF(FIND(" 6, ",'PDF Information'!$F$9)>0,1,""),"") ->  | S48: 6
Q49: 7, | R49: =IFERROR(IF(FIND(" 7, ",'PDF Information'!$F$9)>0,1,""),"") ->  | S49: 7
Q50: 8, | R50: =IFERROR(IF(FIND(" 8, ",'PDF Information'!$F$9)>0,1,""),"") ->  | S50: 8
Q51: 9, | R51: =IFERROR(IF(FIND(" 9, ",'PDF Information'!$F$9)>0,1,""),"") ->  | S51: 9
Q52: 10, | R52: =IFERROR(IF(FIND(" 10, ",'PDF Information'!$F$9)>0,1,""),"") ->  | S52: 10
Q53: 11, | R53: =IFERROR(IF(FIND(" 11, ",'PDF Information'!$F$9)>0,1,""),"") ->  | S53: 11
Q54: 12, | R54: =IFERROR(IF(FIND(" 12, ",'PDF Information'!$F$9)>0,1,""),"") ->  | S54: 12
Q55: 13, | R55: =IFERROR(IF(FIND(" 13, ",'PDF Information'!$F$9)>0,1,""),"") ->  | S55: 13
Q56: 14, | R56: =IFERROR(IF(FIND(" 14, ",'PDF Information'!$F$9)>0,1,""),"") ->  | S56: 14
Q57: 15, | R57: =IFERROR(IF(FIND(" 15, ",'PDF Information'!$F$9)>0,1,""),"") ->  | S57: 15
Q58: 16, | R58: =IFERROR(IF(FIND(" 16, ",'PDF Information'!$F$9)>0,1,""),"") ->  | S58: 16
Q59: 17, | R59: =IFERROR(IF(FIND(" 17, ",'PDF Information'!$F$9)>0,1,""),"") ->  | S59: 17
Q60: 18, | R60: =IFERROR(IF(FIND(" 18, ",'PDF Information'!$F$9)>0,1,""),"") ->  | S60: 18
Q61: 19, | R61: =IFERROR(IF(FIND(" 19, ",'PDF Information'!$F$9)>0,1,""),"") ->  | S61: 19
A62: =IF(ISBLANK(B62),"",A61+1) ->  | Q62: 20, | R62: =IFERROR(IF(FIND(" 20, ",'PDF Information'!$F$9)>0,1,""),"") ->  | S62: 20
Q63: 21, | R63: =IFERROR(IF(FIND(" 21, ",'PDF Information'!$F$9)>0,1,""),"") ->  | S63: 21
Q64: 22, | R64: =IFERROR(IF(FIND(" 22, ",'PDF Information'!$F$9)>0,1,""),"") ->  | S64: 22
A65: =IF(ISBLANK(B65),"",A64+1) ->  | Q65: 23, | R65: =IFERROR(IF(FIND(" 23, ",'PDF Information'!$F$9)>0,1,""),"") ->  | S65: 23
Q66: 24, | R66: =IFERROR(IF(FIND(" 24, ",'PDF Information'!$F$9)>0,1,""),"") ->  | S66: 24
Q67: 25, | R67: =IFERROR(IF(FIND(" 25, ",'PDF Information'!$F$9)>0,1,""),"") ->  | S67: 25
Q68: 26, | R68: =IFERROR(IF(FIND(" 26, ",'PDF Information'!$F$9)>0,1,""),"") ->  | S68: 26
Q69: 27, | R69: =IFERROR(IF(FIND(" 27, ",'PDF Information'!$F$9)>0,1,""),"") ->  | S69: 27
Q70: 28, | R70: =IFERROR(IF(FIND(" 28, ",'PDF Information'!$F$9)>0,1,""),"") -> 1 | S70: 28 | T70: 28
Q71: 29, | R71: =IFERROR(IF(FIND(" 29, ",'PDF Information'!$F$9)>0,1,""),"") ->  | S71: 29
Q72: 30, | R72: =IFERROR(IF(FIND(" 30, ",'PDF Information'!$F$9)>0,1,""),"") ->  | S72: 30
Q73: 31, | R73: =IFERROR(IF(FIND(" 31, ",'PDF Information'!$F$9)>0,1,""),"") ->  | S73: 31
Q74: 01, | R74: =IFERROR(IF(FIND(" 01, ",'PDF Information'!$F$9)>0,1,""),"") ->  | S74: 01
Q75: 02, | R75: =IFERROR(IF(FIND(" 02, ",'PDF Information'!$F$9)>0,1,""),"") ->  | S75: 02
Q76: 03, | R76: =IFERROR(IF(FIND(" 03, ",'PDF Information'!$F$9)>0,1,""),"") ->  | S76: 03
Q77: 04, | R77: =IFERROR(IF(FIND(" 04, ",'PDF Information'!$F$9)>0,1,""),"") ->  | S77: 04
Q78: 05, | R78: =IFERROR(IF(FIND(" 05, ",'PDF Information'!$F$9)>0,1,""),"") ->  | S78: 05
Q79: 06, | R79: =IFERROR(IF(FIND(" 06, ",'PDF Information'!$F$9)>0,1,""),"") ->  | S79: 06
Q80: 07, | R80: =IFERROR(IF(FIND(" 07, ",'PDF Information'!$F$9)>0,1,""),"") ->  | S80: 07
Q81: 08, | R81: =IFERROR(IF(FIND(" 08, ",'PDF Information'!$F$9)>0,1,""),"") ->  | S81: 08
Q82: 09, | R82: =IFERROR(IF(FIND(" 09, ",'PDF Information'!$F$9)>0,1,""),"") ->  | S82: 09

Sheet Payroll Sheet
P1: Which Row to Hide | R1: rate: | S1: reg | T1: ot | U1: dt | V1: show | X1: reg | Y1: ot | Z1: dt | AA1: sh | AC1: reg | AD1: ot | AE1: dt | AF1: sh
I2: THEATRICAL STAGE EMPLOYEES LOCAL #16 I.A.T.S.E. PAYROLL SHEET | P2: NO | R2: head | S2: 33.64 | T2: =S2*1.5 -> 50.46 | U2: =S2*2 -> 67.28 | V2: 154.24 | W2: foreman | X2: 22.95 | AB2: Cont Coord | AC2: 27.3 | AD2: =AC2*1.5 -> 40.95 | AE2: =AC2*2 -> 54.6
I3: 415/441-6400 | P3: NO | R3: extra | S3: 30.14 | T3: 45.21 | U3: =S3*2 -> 60.28 | V3: 129.43 | W3: shop ex | X3: 20.35 | AB3: Asst Coord | AC3: 25.4 | AD3: =AC3*1.5 -> 38.1 | AE3: =AC3*2 -> 50.8
I4: 240 SECOND ST. | L4: JOB: | M4: ='PDF Information'!F4 ->  | P4: NO | R4: followspot | S4: =S3 -> 30.14 | T4: 45.21 | U4: =S4*2 -> 60.28 | V4: 140.22 | AB4: Mechanic | AC4: 23.5 | AD4: =AC4*1.5 -> 35.25 | AE4: =AC4*2 -> 47
I5: SAN FRANCISCO, CA 94105 | L5: LOCATION: | M5: ='PDF Information'!F8 ->  | P5: NO | R5: a/v | S5: 23.64 | T5: 35.46 | AB5: Bench Hand | AC5: 21.85 | AD5: =AC5*1.5 -> 32.775 | AE5: =AC5*2 -> 43.7
A6: 0 | L6: REPORT TO: | M6: ='PDF Information'!F7 ->  | P6: NO | R6: a/v stew | S6: 33.64 | T6: 50.46 | W6: yerba buena hse | X6: 24.34 | Y6: =X6*1.5 -> 36.51 | AB6: General | AC6: 19.4 | AD6: =AC6*1.5 -> 29.1 | AE6: =AC6*2 -> 38.8
B7: COMPANY: | C7: ='PDF Information'!F5 ->  | L7: START DATE: | M7: ='Filtered Information'!D1 -> 2013-10-28 | P7: NO | R7: a/v camera | S7: 30.14 | T7: 45.21 | W7: yerba buena forum | X7: 19.74 | Y7: =X7*1.5 -> 29.61
B8: PAYROLL COMPANY: | C8: ='PDF Information'!F6 ->  | L8: END DATE: | P8: NO | R8: a/v multi | S8: 28.01 | T8: 42.015 | W8: yerba buena extra | X8: 17.64 | Y8: =X8*1.5 -> 26.46 | AA8: 77.18
C9: =C10 -> 2013-10-28 | D9: - | E9: - | F9: - | G9: - | H9: - | I9: - | P9: NO | R9: head high | S9: =S2+2 -> 35.64 | T9: 53.46 | U9: =S9*2 -> 71.28
A10: NAME: | B10: DATE | C10: =M7 -> 2013-10-28 | D10: =IF(M8>C10,C10+1,"-") -> - | E10: =IF(M8>D10,D10+1,"-") -> - | F10: =IF(M8>E10,E10+1,"-") -> - | G10: =IF(M8>F10,F10+1,"-") -> - | H10: =IF(M8>G10,G10+1,"-") -> - | I10: =IF(M8>H10,H10+1,"-") -> - | J10: NO. | K10: RATE | L10: EXTENSION | N10: TOTALS | P10: NO | R10: extra high | S10: =S3+2 -> 32.14 | T10: 48.21 | U10: =S10*2 -> 64.28
A11: =A6+1 -> 1 | B11: REG. | J11: =SUM(C11:I11) -> 0 | K11: =IFERROR(VLOOKUP(A11,'Filtered Information'!$A$3:$D$64,2,FALSE),"0") -> 0 | L11: =J11*K11 -> 0 | M11: =IF(K11>0,"SUBTOTAL:",0) -> SUBTOTAL: | N11: =SUM(L11:L15) -> 0 | P11: =IF('Filtered Information'!$B$1>=A11,"NO","YES") -> YES
A12: =IFERROR(VLOOKUP(A11,'Filtered Information'!$A$3:$E$66,4,FALSE),"-") -> - | B12: O.T. | J12: 0 | K12: =IF(J12>0,K11*1.5,) -> 0 | L12: 0 | M12: VACATION 8%: | N12: =N11*0.08 -> 0 | P12: =IF('Filtered Information'!$B$1>=A11,"NO","YES") -> YES
A13: =IFERROR(VLOOKUP(A11,'Filtered Information'!$A$3:$E$66,3,FALSE),"-") -> - | B13: D.T. | J13: 0 | K13: =IF(J13>0,K11*2,) -> 0 | L13: 0 | M13: =IF(K11>0,"TOTAL WAGE:",0) -> TOTAL WAGE: | N13: =N11+N12 -> 0 | O13: =N13 -> 0 | P13: =IF('Filtered Information'!$B$1>=A11,"NO","YES") -> YES
A14: =IFERROR(VLOOKUP(A11,'Filtered Information'!$A$3:$E$64,5,FALSE),"-") -> - | B14: SHOW | J14: 0 | L14: 0 | P14: =IF('Filtered Information'!$B$1>=A11,"NO","YES") -> YES
A15: LAST 4 SS# | B15: M.P. | J15: 0 | K15: =IF(J15>0,K11,) -> 0 | L15: 0 | M15: =IF(K11>0,"UNION 3.5%:",0) -> UNION 3.5%: | N15: =N13*0.035 -> 0 | P15: =IF('Filtered Information'!$B$1>=A11,"NO","YES") -> YES
A16: =A11+1 -> 2 | B16: REG. | J16: 0 | K16: =IFERROR(VLOOKUP(A16,'Filtered Information'!$A$3:$D$64,2,FALSE),"0") -> 0 | L16: 0 | M16: =IF(K16>0,"SUBTOTAL:",0) -> SUBTOTAL: | N16: =SUM(L16:L20) -> 0 | P16: =IF('Filtered Information'!$B$1>=A16,"NO","YES") -> YES
A17: =IFERROR(VLOOKUP(A16,'Filtered Information'!$A$3:$E$66,4,FALSE),"-") -> - | B17: O.T. | J17: 0 | K17: =IF(J17>0,K16*1.5,) -> 0 | L17: 0 | M17: VACATION 8%: | N17: =N16*0.08 -> 0 | P17: =IF('Filtered Information'!$B$1>=A16,"NO","YES") -> YES
A18: =IFERROR(VLOOKUP(A16,'Filtered Information'!$A$3:$E$66,3,FALSE),"-") -> - | B18: D.T. | J18: 0 | K18: =IF(J18>0,K16*2,) -> 0 | L18: 0 | M18: =IF(K16>0,"TOTAL WAGE:",0) -> TOTAL WAGE: | N18: =N16+N17 -> 0 | O18: =N18 -> 0 | P18: =IF('Filtered Information'!$B$1>=A16,"NO","YES") -> YES
A19: =IFERROR(VLOOKUP(A16,'Filtered Information'!$A$3:$E$64,5,FALSE),"-") -> - | B19: SHOW | J19: 0 | L19: 0 | P19: =IF('Filtered Information'!$B$1>=A16,"NO","YES") -> YES
B20: M.P. | J20: 0 | K20: =IF(J20>0,K16,) -> 0 | L20: 0 | M20: =IF(K16>0,"UNION 3.5%:",0) -> UNION 3.5%: | N20: =N18*0.035 -> 0 | P20: =IF('Filtered Information'!$B$1>=A16,"NO","YES") -> YES
A21: =A16+1 -> 3 | B21: REG. | J21: 0 | K21: =IFERROR(VLOOKUP(A21,'Filtered Information'!$A$3:$D$64,2,FALSE),"0") -> 0 | L21: 0 | M21: =IF(K21>0,"SUBTOTAL:",0) -> SUBTOTAL: | N21: =SUM(L21:L25) -> 0 | P21: =IF('Filtered Information'!$B$1>=A21,"NO","YES") -> YES
A22: =IFERROR(VLOOKUP(A21,'Filtered Information'!$A$3:$E$66,4,FALSE),"-") -> - | B22: O.T. | J22: 0 | K22: =IF(J22>0,K21*1.5,) -> 0 | L22: 0 | M22: VACATION 8%: | N22: =N21*0.08 -> 0 | P22: =IF('Filtered Information'!$B$1>=A21,"NO","YES") -> YES
A23: =IFERROR(VLOOKUP(A21,'Filtered Information'!$A$3:$E$66,3,FALSE),"-") -> - | B23: D.T. | J23: 0 | K23: =IF(J23>0,K21*2,) -> 0 | L23: 0 | M23: =IF(K21>0,"TOTAL WAGE:",0) -> TOTAL WAGE: | N23: =N21+N22 -> 0 | O23: =N23 -> 0 | P23: =IF('Filtered Information'!$B$1>=A21,"NO","YES") -> YES
A24: =IFERROR(VLOOKUP(A21,'Filtered Information'!$A$3:$E$64,5,FALSE),"-") -> - | B24: SHOW | J24: 0 | L24: 0 | P24: =IF('Filtered Information'!$B$1>=A21,"NO","YES") -> YES
B25: M.P. | J25: 0 | K25: =IF(J25>0,K21,) -> 0 | L25: 0 | M25: =IF(K21>0,"UNION 3.5%:",0) -> UNION 3.5%: | N25: =N23*0.035 -> 0 | P25: =IF('Filtered Information'!$B$1>=A21,"NO","YES") -> YES
A26: =A21+1 -> 4 | B26: REG. | J26: 0 | K26: =IFERROR(VLOOKUP(A26,'Filtered Information'!$A$3:$D$64,2,FALSE),"0") -> 0 | L26: 0 | M26: =IF(K26>0,"SUBTOTAL:",0) -> SUBTOTAL: | N26: =SUM(L26:L30) -> 0 | P26: =IF('Filtered Information'!$B$1>=A26,"NO","YES") -> YES
A27: =IFERROR(VLOOKUP(A26,'Filtered Information'!$A$3:$E$66,4,FALSE),"-") -> - | B27: O.T. | J27: 0 | K27: =IF(J27>0,K26*1.5,) -> 0 | L27: 0 | M27: VACATION 8%: | N27: =N26*0.08 -> 0 | P27: =IF('Filtered Information'!$B$1>=A26,"NO","YES") -> YES
A28: =IFERROR(VLOOKUP(A26,'Filtered Information'!$A$3:$E$66,3,FALSE),"-") -> - | B28: D.T. | J28: 0 | K28: =IF(J28>0,K26*2,) -> 0 | L28: 0 | M28: =IF(K26>0,"TOTAL WAGE:",0) -> TOTAL WAGE: | N28: =N26+N27 -> 0 | O28: =N28 -> 0 | P28: =IF('Filtered Information'!$B$1>=A26,"NO","YES") -> YES
A29: =IFERROR(VLOOKUP(A26,'Filtered Information'!$A$3:$E$64,5,FALSE),"-") -> - | B29: SHOW | J29: 0 | L29: 0 | P29: =IF('Filtered Information'!$B$1>=A26,"NO","YES") -> YES
B30: M.P. | J30: 0 | K30: =IF(J30>0,K26,) -> 0 | L30: 0 | M30: =IF(K26>0,"UNION 3.5%:",0) -> UNION 3.5%: | N30: =N28*0.035 -> 0 | P30: =IF('Filtered Information'!$B$1>=A26,"NO","YES") -> YES
A31: =A26+1 -> 5 | B31: REG. | J31: =SUM(C31:I31) -> 0 | K31: =IFERROR(VLOOKUP(A31,'Filtered Information'!$A$3:$D$64,2,FALSE),"0") -> 0 | L31: =J31*K31 -> 0 | M31: =IF(K31>0,"SUBTOTAL:",0) -> SUBTOTAL: | N31: =SUM(L31:L35) -> 0 | P31: =IF('Filtered Information'!$B$1>=A31,"NO","YES") -> YES
A32: =IFERROR(VLOOKUP(A31,'Filtered Information'!$A$3:$E$66,4,FALSE),"-") -> - | B32: O.T. | J32: 0 | K32: =IF(J32>0,K31*1.5,) -> 0 | L32: 0 | M32: VACATION 8%: | N32: =N31*0.08 -> 0 | P32: =IF('Filtered Information'!$B$1>=A31,"NO","YES") -> YES
A33: =IFERROR(VLOOKUP(A31,'Filtered Information'!$A$3:$E$66,3,FALSE),"-") -> - | B33: D.T. | J33: 0 | K33: =IF(J33>0,K31*2,) -> 0 | L33: 0 | M33: =IF(K31>0,"TOTAL WAGE:",0) -> TOTAL WAGE: | N33: =N31+N32 -> 0 | O33: =N33 -> 0 | P33: =IF('Filtered Information'!$B$1>=A31,"NO","YES") -> YES
A34: =IFERROR(VLOOKUP(A31,'Filtered Information'!$A$3:$E$64,5,FALSE),"-") -> - | B34: SHOW | J34: 0 | L34: 0 | P34: =IF('Filtered Information'!$B$1>=A31,"NO","YES") -> YES
B35: M.P. | J35: 0 | K35: =IF(J35>0,K31,) -> 0 | L35: 0 | M35: =IF(K31>0,"UNION 3.5%:",0) -> UNION 3.5%: | N35: =N33*0.035 -> 0 | P35: =IF('Filtered Information'!$B$1>=A31,"NO","YES") -> YES
A36: =A31+1 -> 6 | B36: REG. | J36: 0 | K36: =IFERROR(VLOOKUP(A36,'Filtered Information'!$A$3:$D$64,2,FALSE),"0") -> 0 | L36: 0 | M36: =IF(K36>0,"SUBTOTAL:",0) -> SUBTOTAL: | N36: =SUM(L36:L40) -> 0 | P36: =IF('Filtered Information'!$B$1>=A36,"NO","YES") -> YES
A37: =IFERROR(VLOOKUP(A36,'Filtered Information'!$A$3:$E$66,4,FALSE),"-") -> - | B37: O.T. | J37: 0 | K37: =IF(J37>0,K36*1.5,) -> 0 | L37: 0 | M37: VACATION 8%: | N37: =N36*0.08 -> 0 | P37: =IF('Filtered Information'!$B$1>=A36,"NO","YES") -> YES
A38: =IFERROR(VLOOKUP(A36,'Filtered Information'!$A$3:$E$66,3,FALSE),"-") -> - | B38: D.T. | J38: 0 | K38: =IF(J38>0,K36*2,) -> 0 | L38: 0 | M38: =IF(K36>0,"TOTAL WAGE:",0) -> TOTAL WAGE: | N38: =N36+N37 -> 0 | O38: =N38 -> 0 | P38: =IF('Filtered Information'!$B$1>=A36,"NO","YES") -> YES
A39: =IFERROR(VLOOKUP(A36,'Filtered Information'!$A$3:$E$64,5,FALSE),"-") -> - | B39: SHOW | J39: 0 | L39: 0 | P39: =IF('Filtered Information'!$B$1>=A36,"NO","YES") -> YES
B40: M.P. | J40: 0 | K40: =IF(J40>0,K36,) -> 0 | L40: 0 | M40: =IF(K36>0,"UNION 3.5%:",0) -> UNION 3.5%: | N40: =N38*0.035 -> 0 | P40: =IF('Filtered Information'!$B$1>=A36,"NO","YES") -> YES
A41: =A36+1 -> 7 | B41: REG. | J41: 0 | K41: =IFERROR(VLOOKUP(A41,'Filtered Information'!$A$3:$D$64,2,FALSE),"0") -> 0 | L41: 0 | M41: =IF(K41>0,"SUBTOTAL:",0) -> SUBTOTAL: | N41: =SUM(L41:L45) -> 0 | P41: =IF('Filtered Information'!$B$1>=A41,"NO","YES") -> YES
A42: =IFERROR(VLOOKUP(A41,'Filtered Information'!$A$3:$E$66,4,FALSE),"-") -> - | B42: O.T. | J42: 0 | K42: =IF(J42>0,K41*1.5,) -> 0 | L42: 0 | M42: VACATION 8%: | N42: =N41*0.08 -> 0 | P42: =IF('Filtered Information'!$B$1>=A41,"NO","YES") -> YES
A43: =IFERROR(VLOOKUP(A41,'Filtered Information'!$A$3:$E$66,3,FALSE),"-") -> - | B43: D.T. | J43: 0 | K43: =IF(J43>0,K41*2,) -> 0 | L43: 0 | M43: =IF(K41>0,"TOTAL WAGE:",0) -> TOTAL WAGE: | N43: =N41+N42 -> 0 | O43: =N43 -> 0 | P43: =IF('Filtered Information'!$B$1>=A41,"NO","YES") -> YES
A44: =IFERROR(VLOOKUP(A41,'Filtered Information'!$A$3:$E$64,5,FALSE),"-") -> - | B44: SHOW | J44: 0 | L44: 0 | P44: =IF('Filtered Information'!$B$1>=A41,"NO","YES") -> YES
B45: M.P. | J45: 0 | K45: =IF(J45>0,K41,) -> 0 | L45: 0 | M45: =IF(K41>0,"UNION 3.5%:",0) -> UNION 3.5%: | N45: =N43*0.035 -> 0 | P45: =IF('Filtered Information'!$B$1>=A41,"NO","YES") -> YES
A46: =A41+1 -> 8 | B46: REG. | J46: 0 | K46: =IFERROR(VLOOKUP(A46,'Filtered Information'!$A$3:$D$64,2,FALSE),"0") -> 0 | L46: 0 | M46: =IF(K46>0,"SUBTOTAL:",0) -> SUBTOTAL: | N46: =SUM(L46:L50) -> 0 | P46: =IF('Filtered Information'!$B$1>=A46,"NO","YES") -> YES
A47: =IFERROR(VLOOKUP(A46,'Filtered Information'!$A$3:$E$66,4,FALSE),"-") -> - | B47: O.T. | J47: 0 | K47: =IF(J47>0,K46*1.5,) -> 0 | L47: 0 | M47: VACATION 8%: | N47: =N46*0.08 -> 0 | P47: =IF('Filtered Information'!$B$1>=A46,"NO","YES") -> YES
A48: =IFERROR(VLOOKUP(A46,'Filtered Information'!$A$3:$E$66,3,FALSE),"-") -> - | B48: D.T. | J48: 0 | K48: =IF(J48>0,K46*2,) -> 0 | L48: 0 | M48: =IF(K46>0,"TOTAL WAGE:",0) -> TOTAL WAGE: | N48: =N46+N47 -> 0 | O48: =N48 -> 0 | P48: =IF('Filtered Information'!$B$1>=A46,"NO","YES") -> YES
A49: =IFERROR(VLOOKUP(A46,'Filtered Information'!$A$3:$E$64,5,FALSE),"-") -> - | B49: SHOW | J49: 0 | L49: 0 | P49: =IF('Filtered Information'!$B$1>=A46,"NO","YES") -> YES
B50: M.P. | J50: 0 | K50: =IF(J50>0,K46,) -> 0 | L50: 0 | M50: =IF(K46>0,"UNION 3.5%:",0) -> UNION 3.5%: | N50: =N48*0.035 -> 0 | P50: =IF('Filtered Information'!$B$1>=A46,"NO","YES") -> YES
A51: =A46+1 -> 9 | B51: REG. | J51: 0 | K51: =IFERROR(VLOOKUP(A51,'Filtered Information'!$A$3:$D$64,2,FALSE),"0") -> 0 | L51: 0 | M51: =IF(K51>0,"SUBTOTAL:",0) -> SUBTOTAL: | N51: =SUM(L51:L55) -> 0 | P51: =IF('Filtered Information'!$B$1>=A51,"NO","YES") -> YES
A52: =IFERROR(VLOOKUP(A51,'Filtered Information'!$A$3:$E$66,4,FALSE),"-") -> - | B52: O.T. | J52: 0 | K52: =IF(J52>0,K51*1.5,) -> 0 | L52: 0 | M52: VACATION 8%: | N52: =N51*0.08 -> 0 | P52: =IF('Filtered Information'!$B$1>=A51,"NO","YES") -> YES
A53: =IFERROR(VLOOKUP(A51,'Filtered Information'!$A$3:$E$66,3,FALSE),"-") -> - | B53: D.T. | J53: 0 | K53: =IF(J53>0,K51*2,) -> 0 | L53: 0 | M53: =IF(K51>0,"TOTAL WAGE:",0) -> TOTAL WAGE: | N53: =N51+N52 -> 0 | O53: =N53 -> 0 | P53: =IF('Filtered Information'!$B$1>=A51,"NO","YES") -> YES
A54: =IFERROR(VLOOKUP(A51,'Filtered Information'!$A$3:$E$64,5,FALSE),"-") -> - | B54: SHOW | J54: 0 | L54: 0 | P54: =IF('Filtered Information'!$B$1>=A51,"NO","YES") -> YES
B55: M.P. | J55: 0 | K55: =IF(J55>0,K51,) -> 0 | L55: 0 | M55: =IF(K51>0,"UNION 3.5%:",0) -> UNION 3.5%: | N55: =N53*0.035 -> 0 | P55: =IF('Filtered Information'!$B$1>=A51,"NO","YES") -> YES
A56: =A51+1 -> 10 | B56: REG. | J56: 0 | K56: =IFERROR(VLOOKUP(A56,'Filtered Information'!$A$3:$D$64,2,FALSE),"0") -> 0 | L56: 0 | M56: =IF(K56>0,"SUBTOTAL:",0) -> SUBTOTAL: | N56: =SUM(L56:L60) -> 0 | P56: =IF('Filtered Information'!$B$1>=A56,"NO","YES") -> YES
A57: =IFERROR(VLOOKUP(A56,'Filtered Information'!$A$3:$E$66,4,FALSE),"-") -> - | B57: O.T. | J57: 0 | K57: =IF(J57>0,K56*1.5,) -> 0 | L57: 0 | M57: VACATION 8%: | N57: =N56*0.08 -> 0 | P57: =IF('Filtered Information'!$B$1>=A56,"NO","YES") -> YES
A58: =IFERROR(VLOOKUP(A56,'Filtered Information'!$A$3:$E$66,3,FALSE),"-") -> - | B58: D.T. | J58: 0 | K58: =IF(J58>0,K56*2,) -> 0 | L58: 0 | M58: =IF(K56>0,"TOTAL WAGE:",0) -> TOTAL WAGE: | N58: =N56+N57 -> 0 | O58: =N58 -> 0 | P58: =IF('Filtered Information'!$B$1>=A56,"NO","YES") -> YES
A59: =IFERROR(VLOOKUP(A56,'Filtered Information'!$A$3:$E$64,5,FALSE),"-") -> - | B59: SHOW | J59: 0 | L59: 0 | P59: =IF('Filtered Information'!$B$1>=A56,"NO","YES") -> YES
B60: M.P. | J60: 0 | K60: =IF(J60>0,K56,) -> 0 | L60: 0 | M60: =IF(K56>0,"UNION 3.5%:",0) -> UNION 3.5%: | N60: =N58*0.035 -> 0 | P60: =IF('Filtered Information'!$B$1>=A56,"NO","YES") -> YES
A61: =A56+1 -> 11 | B61: REG. | J61: 0 | K61: =IFERROR(VLOOKUP(A61,'Filtered Information'!$A$3:$D$64,2,FALSE),"0") -> 0 | L61: 0 | M61: =IF(K61>0,"SUBTOTAL:",0) -> SUBTOTAL: | N61: =SUM(L61:L65) -> 0 | P61: =IF('Filtered Information'!$B$1>=A61,"NO","YES") -> YES
A62: =IFERROR(VLOOKUP(A61,'Filtered Information'!$A$3:$E$66,4,FALSE),"-") -> - | B62: O.T. | J62: 0 | K62: =IF(J62>0,K61*1.5,) -> 0 | L62: 0 | M62: VACATION 8%: | N62: =N61*0.08 -> 0 | P62: =IF('Filtered Information'!$B$1>=A61,"NO","YES") -> YES
A63: =IFERROR(VLOOKUP(A61,'Filtered Information'!$A$3:$E$66,3,FALSE),"-") -> - | B63: D.T. | J63: =SUM(C63:I63) -> 0 | K63: =IF(J63>0,K61*2,) -> 0 | L63: =J63*K63 -> 0 | M63: =IF(K61>0,"TOTAL WAGE:",0) -> TOTAL WAGE: | N63: =N61+N62 -> 0 | O63: =N63 -> 0 | P63: =IF('Filtered Information'!$B$1>=A61,"NO","YES") -> YES
A64: =IFERROR(VLOOKUP(A61,'Filtered Information'!$A$3:$E$64,5,FALSE),"-") -> - | B64: SHOW | J64: 0 | L64: 0 | P64: =IF('Filtered Information'!$B$1>=A61,"NO","YES") -> YES
B65: M.P. | J65: 0 | K65: =IF(J65>0,K61,) -> 0 | L65: 0 | M65: =IF(K61>0,"UNION 3.5%:",0) -> UNION 3.5%: | N65: =N63*0.035 -> 0 | P65: =IF('Filtered Information'!$B$1>=A61,"NO","YES") -> YES
A66: =A61+1 -> 12 | B66: REG. | J66: 0 | K66: =IFERROR(VLOOKUP(A66,'Filtered Information'!$A$3:$D$64,2,FALSE),"0") -> 0 | L66: 0 | M66: =IF(K66>0,"SUBTOTAL:",0) -> SUBTOTAL: | N66: =SUM(L66:L70) -> 0 | P66: =IF('Filtered Information'!$B$1>=A66,"NO","YES") -> YES
A67: =IFERROR(VLOOKUP(A66,'Filtered Information'!$A$3:$E$66,4,FALSE),"-") -> - | B67: O.T. | J67: 0 | K67: =IF(J67>0,K66*1.5,) -> 0 | L67: 0 | M67: VACATION 8%: | N67: =N66*0.08 -> 0 | P67: =IF('Filtered Information'!$B$1>=A66,"NO","YES") -> YES
A68: =IFERROR(VLOOKUP(A66,'Filtered Information'!$A$3:$E$66,3,FALSE),"-") -> - | B68: D.T. | J68: 0 | K68: =IF(J68>0,K66*2,) -> 0 | L68: 0 | M68: =IF(K66>0,"TOTAL WAGE:",0) -> TOTAL WAGE: | N68: =N66+N67 -> 0 | O68: =N68 -> 0 | P68: =IF('Filtered Information'!$B$1>=A66,"NO","YES") -> YES
A69: =IFERROR(VLOOKUP(A66,'Filtered Information'!$A$3:$E$64,5,FALSE),"-") -> - | B69: SHOW | J69: 0 | L69: 0 | P69: =IF('Filtered Information'!$B$1>=A66,"NO","YES") -> YES
B70: M.P. | J70: 0 | K70: =IF(J70>0,K66,) -> 0 | L70: 0 | M70: =IF(K66>0,"UNION 3.5%:",0) -> UNION 3.5%: | N70: =N68*0.035 -> 0 | P70: =IF('Filtered Information'!$B$1>=A66,"NO","YES") -> YES
A71: =A66+1 -> 13 | B71: REG. | J71: 0 | K71: =IFERROR(VLOOKUP(A71,'Filtered Information'!$A$3:$D$64,2,FALSE),"0") -> 0 | L71: 0 | M71: =IF(K71>0,"SUBTOTAL:",0) -> SUBTOTAL: | N71: =SUM(L71:L75) -> 0 | P71: =IF('Filtered Information'!$B$1>=A71,"NO","YES") -> YES
A72: =IFERROR(VLOOKUP(A71,'Filtered Information'!$A$3:$E$66,4,FALSE),"-") -> - | B72: O.T. | J72: 0 | K72: =IF(J72>0,K71*1.5,) -> 0 | L72: 0 | M72: VACATION 8%: | N72: =N71*0.08 -> 0 | P72: =IF('Filtered Information'!$B$1>=A71,"NO","YES") -> YES
A73: =IFERROR(VLOOKUP(A71,'Filtered Information'!$A$3:$E$66,3,FALSE),"-") -> - | B73: D.T. | J73: 0 | K73: =IF(J73>0,K71*2,) -> 0 | L73: 0 | M73: =IF(K71>0,"TOTAL WAGE:",0) -> TOTAL WAGE: | N73: =N71+N72 -> 0 | O73: =N73 -> 0 | P73: =IF('Filtered Information'!$B$1>=A71,"NO","YES") -> YES
A74: =IFERROR(VLOOKUP(A71,'Filtered Information'!$A$3:$E$64,5,FALSE),"-") -> - | B74: SHOW | J74: 0 | L74: 0 | P74: =IF('Filtered Information'!$B$1>=A71,"NO","YES") -> YES
B75: M.P. | J75: 0 | K75: =IF(J75>0,K71,) -> 0 | L75: 0 | M75: =IF(K71>0,"UNION 3.5%:",0) -> UNION 3.5%: | N75: =N73*0.035 -> 0 | P75: =IF('Filtered Information'!$B$1>=A71,"NO","YES") -> YES
A76: =A71+1 -> 14 | B76: REG. | J76: 0 | K76: =IFERROR(VLOOKUP(A76,'Filtered Information'!$A$3:$D$64,2,FALSE),"0") -> 0 | L76: 0 | M76: =IF(K76>0,"SUBTOTAL:",0) -> SUBTOTAL: | N76: =SUM(L76:L80) -> 0 | P76: =IF('Filtered Information'!$B$1>=A76,"NO","YES") -> YES
A77: =IFERROR(VLOOKUP(A76,'Filtered Information'!$A$3:$E$66,4,FALSE),"-") -> - | B77: O.T. | J77: 0 | K77: =IF(J77>0,K76*1.5,) -> 0 | L77: 0 | M77: VACATION 8%: | N77: =N76*0.08 -> 0 | P77: =IF('Filtered Information'!$B$1>=A76,"NO","YES") -> YES
A78: =IFERROR(VLOOKUP(A76,'Filtered Information'!$A$3:$E$66,3,FALSE),"-") -> - | B78: D.T. | J78: 0 | K78: =IF(J78>0,K76*2,) -> 0 | L78: 0 | M78: =IF(K76>0,"TOTAL WAGE:",0) -> TOTAL WAGE: | N78: =N76+N77 -> 0 | O78: =N78 -> 0 | P78: =IF('Filtered Information'!$B$1>=A76,"NO","YES") -> YES
A79: =IFERROR(VLOOKUP(A76,'Filtered Information'!$A$3:$E$64,5,FALSE),"-") -> - | B79: SHOW | J79: 0 | L79: 0 | P79: =IF('Filtered Information'!$B$1>=A76,"NO","YES") -> YES
B80: M.P. | J80: 0 | K80: =IF(J80>0,K76,) -> 0 | L80: 0 | M80: =IF(K76>0,"UNION 3.5%:",0) -> UNION 3.5%: | N80: =N78*0.035 -> 0 | P80: =IF('Filtered Information'!$B$1>=A76,"NO","YES") -> YES
A81: =A76+1 -> 15 | B81: REG. | J81: 0 | K81: =IFERROR(VLOOKUP(A81,'Filtered Information'!$A$3:$D$64,2,FALSE),"0") -> 0 | L81: 0 | M81: =IF(K81>0,"SUBTOTAL:",0) -> SUBTOTAL: | N81: =SUM(L81:L85) -> 0 | P81: =IF('Filtered Information'!$B$1>=A81,"NO","YES") -> YES
A82: =IFERROR(VLOOKUP(A81,'Filtered Information'!$A$3:$E$66,4,FALSE),"-") -> - | B82: O.T. | J82: 0 | K82: =IF(J82>0,K81*1.5,) -> 0 | L82: 0 | M82: VACATION 8%: | N82: =N81*0.08 -> 0 | P82: =IF('Filtered Information'!$B$1>=A81,"NO","YES") -> YES
A83: =IFERROR(VLOOKUP(A81,'Filtered Information'!$A$3:$E$66,3,FALSE),"-") -> - | B83: D.T. | J83: 0 | K83: =IF(J83>0,K81*2,) -> 0 | L83: 0 | M83: =IF(K81>0,"TOTAL WAGE:",0) -> TOTAL WAGE: | N83: =N81+N82 -> 0 | O83: =N83 -> 0 | P83: =IF('Filtered Information'!$B$1>=A81,"NO","YES") -> YES
A84: =IFERROR(VLOOKUP(A81,'Filtered Information'!$A$3:$E$64,5,FALSE),"-") -> - | B84: SHOW | J84: 0 | L84: 0 | P84: =IF('Filtered Information'!$B$1>=A81,"NO","YES") -> YES
B85: M.P. | J85: 0 | K85: =IF(J85>0,K81,) -> 0 | L85: 0 | M85: =IF(K81>0,"UNION 3.5%:",0) -> UNION 3.5%: | N85: =N83*0.035 -> 0 | P85: =IF('Filtered Information'!$B$1>=A81,"NO","YES") -> YES
A86: =A81+1 -> 16 | B86: REG. | J86: 0 | K86: =IFERROR(VLOOKUP(A86,'Filtered Information'!$A$3:$D$64,2,FALSE),"0") -> 0 | L86: 0 | M86: =IF(K86>0,"SUBTOTAL:",0) -> SUBTOTAL: | N86: =SUM(L86:L90) -> 0 | P86: =IF('Filtered Information'!$B$1>=A86,"NO","YES") -> YES
A87: =IFERROR(VLOOKUP(A86,'Filtered Information'!$A$3:$E$66,4,FALSE),"-") -> - | B87: O.T. | J87: 0 | K87: =IF(J87>0,K86*1.5,) -> 0 | L87: 0 | M87: VACATION 8%: | N87: =N86*0.08 -> 0 | P87: =IF('Filtered Information'!$B$1>=A86,"NO","YES") -> YES
A88: =IFERROR(VLOOKUP(A86,'Filtered Information'!$A$3:$E$66,3,FALSE),"-") -> - | B88: D.T. | J88: 0 | K88: =IF(J88>0,K86*2,) -> 0 | L88: 0 | M88: =IF(K86>0,"TOTAL WAGE:",0) -> TOTAL WAGE: | N88: =N86+N87 -> 0 | O88: =N88 -> 0 | P88: =IF('Filtered Information'!$B$1>=A86,"NO","YES") -> YES
A89: =IFERROR(VLOOKUP(A86,'Filtered Information'!$A$3:$E$64,5,FALSE),"-") -> - | B89: SHOW | J89: 0 | L89: 0 | P89: =IF('Filtered Information'!$B$1>=A86,"NO","YES") -> YES
B90: M.P. | J90: 0 | K90: =IF(J90>0,K86,) -> 0 | L90: 0 | M90: =IF(K86>0,"UNION 3.5%:",0) -> UNION 3.5%: | N90: =N88*0.035 -> 0 | P90: =IF('Filtered Information'!$B$1>=A86,"NO","YES") -> YES
A91: =A86+1 -> 17 | B91: REG. | J91: 0 | K91: =IFERROR(VLOOKUP(A91,'Filtered Information'!$A$3:$D$64,2,FALSE),"0") -> 0 | L91: 0 | M91: =IF(K91>0,"SUBTOTAL:",0) -> SUBTOTAL: | N91: =SUM(L91:L95) -> 0 | P91: =IF('Filtered Information'!$B$1>=A91,"NO","YES") -> YES
A92: =IFERROR(VLOOKUP(A91,'Filtered Information'!$A$3:$E$66,4,FALSE),"-") -> - | B92: O.T. | J92: 0 | K92: =IF(J92>0,K91*1.5,) -> 0 | L92: 0 | M92: VACATION 8%: | N92: =N91*0.08 -> 0 | P92: =IF('Filtered Information'!$B$1>=A91,"NO","YES") -> YES
A93: =IFERROR(VLOOKUP(A91,'Filtered Information'!$A$3:$E$66,3,FALSE),"-") -> - | B93: D.T. | J93: 0 | K93: =IF(J93>0,K91*2,) -> 0 | L93: 0 | M93: =IF(K91>0,"TOTAL WAGE:",0) -> TOTAL WAGE: | N93: =N91+N92 -> 0 | O93: =N93 -> 0 | P93: =IF('Filtered Information'!$B$1>=A91,"NO","YES") -> YES
A94: =IFERROR(VLOOKUP(A91,'Filtered Information'!$A$3:$E$64,5,FALSE),"-") -> - | B94: SHOW | J94: 0 | L94: 0 | P94: =IF('Filtered Information'!$B$1>=A91,"NO","YES") -> YES
B95: M.P. | J95: =SUM(C95:I95) -> 0 | K95: =IF(J95>0,K91,) -> 0 | L95: =J95*K95 -> 0 | M95: =IF(K91>0,"UNION 3.5%:",0) -> UNION 3.5%: | N95: =N93*0.035 -> 0 | P95: =IF('Filtered Information'!$B$1>=A91,"NO","YES") -> YES
A96: =A91+1 -> 18 | B96: REG. | J96: 0 | K96: =IFERROR(VLOOKUP(A96,'Filtered Information'!$A$3:$D$64,2,FALSE),"0") -> 0 | L96: 0 | M96: =IF(K96>0,"SUBTOTAL:",0) -> SUBTOTAL: | N96: =SUM(L96:L100) -> 0 | P96: =IF('Filtered Information'!$B$1>=A96,"NO","YES") -> YES
A97: =IFERROR(VLOOKUP(A96,'Filtered Information'!$A$3:$E$66,4,FALSE),"-") -> - | B97: O.T. | J97: 0 | K97: =IF(J97>0,K96*1.5,) -> 0 | L97: 0 | M97: VACATION 8%: | N97: =N96*0.08 -> 0 | P97: =IF('Filtered Information'!$B$1>=A96,"NO","YES") -> YES
A98: =IFERROR(VLOOKUP(A96,'Filtered Information'!$A$3:$E$66,3,FALSE),"-") -> - | B98: D.T. | J98: 0 | K98: =IF(J98>0,K96*2,) -> 0 | L98: 0 | M98: =IF(K96>0,"TOTAL WAGE:",0) -> TOTAL WAGE: | N98: =N96+N97 -> 0 | O98: =N98 -> 0 | P98: =IF('Filtered Information'!$B$1>=A96,"NO","YES") -> YES
A99: =IFERROR(VLOOKUP(A96,'Filtered Information'!$A$3:$E$64,5,FALSE),"-") -> - | B99: SHOW | J99: 0 | L99: 0 | P99: =IF('Filtered Information'!$B$1>=A96,"NO","YES") -> YES
B100: M.P. | J100: 0 | K100: =IF(J100>0,K96,) -> 0 | L100: 0 | M100: =IF(K96>0,"UNION 3.5%:",0) -> UNION 3.5%: | N100: =N98*0.035 -> 0 | P100: =IF('Filtered Information'!$B$1>=A96,"NO","YES") -> YES
A101: =A96+1 -> 19 | B101: REG. | J101: =SUM(C101:I101) -> 0 | K101: =IFERROR(VLOOKUP(A101,'Filtered Information'!$A$3:$D$64,2,FALSE),"0") -> 0 | L101: =J101*K101 -> 0 | M101: =IF(K101>0,"SUBTOTAL:",0) -> SUBTOTAL: | N101: =SUM(L101:L105) -> 0 | P101: =IF('Filtered Information'!$B$1>=A101,"NO","YES") -> YES
A102: =IFERROR(VLOOKUP(A101,'Filtered Information'!$A$3:$E$66,4,FALSE),"-") -> - | B102: O.T. | J102: 0 | K102: =IF(J102>0,K101*1.5,) -> 0 | L102: 0 | M102: VACATION 8%: | N102: =N101*0.08 -> 0 | P102: =IF('Filtered Information'!$B$1>=A101,"NO","YES") -> YES
A103: =IFERROR(VLOOKUP(A101,'Filtered Information'!$A$3:$E$66,3,FALSE),"-") -> - | B103: D.T. | J103: 0 | K103: =IF(J103>0,K101*2,) -> 0 | L103: 0 | M103: =IF(K101>0,"TOTAL WAGE:",0) -> TOTAL WAGE: | N103: =N101+N102 -> 0 | O103: =N103 -> 0 | P103: =IF('Filtered Information'!$B$1>=A101,"NO","YES") -> YES
A104: =IFERROR(VLOOKUP(A101,'Filtered Information'!$A$3:$E$64,5,FALSE),"-") -> - | B104: SHOW | J104: 0 | L104: 0 | P104: =IF('Filtered Information'!$B$1>=A101,"NO","YES") -> YES
B105: M.P. | J105: 0 | K105: =IF(J105>0,K101,) -> 0 | L105: 0 | M105: =IF(K101>0,"UNION 3.5%:",0) -> UNION 3.5%: | N105: =N103*0.035 -> 0 | P105: =IF('Filtered Information'!$B$1>=A101,"NO","YES") -> YES
A106: =A101+1 -> 20 | B106: REG. | J106: 0 | K106: =IFERROR(VLOOKUP(A106,'Filtered Information'!$A$3:$D$64,2,FALSE),"0") -> 0 | L106: 0 | M106: =IF(K106>0,"SUBTOTAL:",0) -> SUBTOTAL: | N106: =SUM(L106:L110) -> 0 | P106: =IF('Filtered Information'!$B$1>=A106,"NO","YES") -> YES
A107: =IFERROR(VLOOKUP(A106,'Filtered Information'!$A$3:$E$66,4,FALSE),"-") -> - | B107: O.T. | J107: 0 | K107: =IF(J107>0,K106*1.5,) -> 0 | L107: 0 | M107: VACATION 8%: | N107: =N106*0.08 -> 0 | P107: =IF('Filtered Information'!$B$1>=A106,"NO","YES") -> YES
A108: =IFERROR(VLOOKUP(A106,'Filtered Information'!$A$3:$E$66,3,FALSE),"-") -> - | B108: D.T. | J108: 0 | K108: =IF(J108>0,K106*2,) -> 0 | L108: 0 | M108: =IF(K106>0,"TOTAL WAGE:",0) -> TOTAL WAGE: | N108: =N106+N107 -> 0 | O108: =N108 -> 0 | P108: =IF('Filtered Information'!$B$1>=A106,"NO","YES") -> YES
A109: =IFERROR(VLOOKUP(A106,'Filtered Information'!$A$3:$E$64,5,FALSE),"-") -> - | B109: SHOW | J109: 0 | L109: 0 | P109: =IF('Filtered Information'!$B$1>=A106,"NO","YES") -> YES
B110: M.P. | J110: 0 | K110: =IF(J110>0,K106,) -> 0 | L110: 0 | M110: =IF(K106>0,"UNION 3.5%:",0) -> UNION 3.5%: | N110: =N108*0.035 -> 0 | P110: =IF('Filtered Information'!$B$1>=A106,"NO","YES") -> YES
A111: =A106+1 -> 21 | B111: REG. | J111: 0 | K111: =IFERROR(VLOOKUP(A111,'Filtered Information'!$A$3:$D$64,2,FALSE),"0") -> 0 | L111: 0 | M111: =IF(K111>0,"SUBTOTAL:",0) -> SUBTOTAL: | N111: =SUM(L111:L115) -> 0 | P111: =IF('Filtered Information'!$B$1>=A111,"NO","YES") -> YES
A112: =IFERROR(VLOOKUP(A111,'Filtered Information'!$A$3:$E$66,4,FALSE),"-") -> - | B112: O.T. | J112: 0 | K112: =IF(J112>0,K111*1.5,) -> 0 | L112: 0 | M112: VACATION 8%: | N112: =N111*0.08 -> 0 | P112: =IF('Filtered Information'!$B$1>=A111,"NO","YES") -> YES
A113: =IFERROR(VLOOKUP(A111,'Filtered Information'!$A$3:$E$66,3,FALSE),"-") -> - | B113: D.T. | J113: 0 | K113: =IF(J113>0,K111*2,) -> 0 | L113: 0 | M113: =IF(K111>0,"TOTAL WAGE:",0) -> TOTAL WAGE: | N113: =N111+N112 -> 0 | O113: =N113 -> 0 | P113: =IF('Filtered Information'!$B$1>=A111,"NO","YES") -> YES
A114: =IFERROR(VLOOKUP(A111,'Filtered Information'!$A$3:$E$64,5,FALSE),"-") -> - | B114: SHOW | J114: 0 | L114: 0 | P114: =IF('Filtered Information'!$B$1>=A111,"NO","YES") -> YES
B115: M.P. | J115: 0 | K115: =IF(J115>0,K111,) -> 0 | L115: 0 | M115: =IF(K111>0,"UNION 3.5%:",0) -> UNION 3.5%: | N115: =N113*0.035 -> 0 | P115: =IF('Filtered Information'!$B$1>=A111,"NO","YES") -> YES
A116: =A111+1 -> 22 | B116: REG. | J116: 0 | K116: =IFERROR(VLOOKUP(A116,'Filtered Information'!$A$3:$D$64,2,FALSE),"0") -> 0 | L116: 0 | M116: =IF(K116>0,"SUBTOTAL:",0) -> SUBTOTAL: | N116: =SUM(L116:L120) -> 0 | P116: =IF('Filtered Information'!$B$1>=A116,"NO","YES") -> YES
A117: =IFERROR(VLOOKUP(A116,'Filtered Information'!$A$3:$E$66,4,FALSE),"-") -> - | B117: O.T. | J117: 0 | K117: =IF(J117>0,K116*1.5,) -> 0 | L117: 0 | M117: VACATION 8%: | N117: =N116*0.08 -> 0 | P117: =IF('Filtered Information'!$B$1>=A116,"NO","YES") -> YES
A118: =IFERROR(VLOOKUP(A116,'Filtered Information'!$A$3:$E$66,3,FALSE),"-") -> - | B118: D.T. | J118: 0 | K118: =IF(J118>0,K116*2,) -> 0 | L118: 0 | M118: =IF(K116>0,"TOTAL WAGE:",0) -> TOTAL WAGE: | N118: =N116+N117 -> 0 | O118: =N118 -> 0 | P118: =IF('Filtered Information'!$B$1>=A116,"NO","YES") -> YES
A119: =IFERROR(VLOOKUP(A116,'Filtered Information'!$A$3:$E$64,5,FALSE),"-") -> - | B119: SHOW | J119: 0 | L119: 0 | P119: =IF('Filtered Information'!$B$1>=A116,"NO","YES") -> YES
B120: M.P. | J120: 0 | K120: =IF(J120>0,K116,) -> 0 | L120: 0 | M120: =IF(K116>0,"UNION 3.5%:",0) -> UNION 3.5%: | N120: =N118*0.035 -> 0 | P120: =IF('Filtered Information'!$B$1>=A116,"NO","YES") -> YES
A121: =A116+1 -> 23 | B121: REG. | J121: =SUM(C121:I121) -> 0 | K121: =IFERROR(VLOOKUP(A121,'Filtered Information'!$A$3:$D$64,2,FALSE),"0") -> 0 | L121: =J121*K121 -> 0 | M121: =IF(K121>0,"SUBTOTAL:",0) -> SUBTOTAL: | N121: =SUM(L121:L125) -> 0 | P121: =IF('Filtered Information'!$B$1>=A121,"NO","YES") -> YES
A122: =IFERROR(VLOOKUP(A121,'Filtered Information'!$A$3:$E$66,4,FALSE),"-") -> - | B122: O.T. | J122: 0 | K122: =IF(J122>0,K121*1.5,) -> 0 | L122: 0 | M122: VACATION 8%: | N122: =N121*0.08 -> 0 | P122: =IF('Filtered Information'!$B$1>=A121,"NO","YES") -> YES
A123: =IFERROR(VLOOKUP(A121,'Filtered Information'!$A$3:$E$66,3,FALSE),"-") -> - | B123: D.T. | J123: 0 | K123: =IF(J123>0,K121*2,) -> 0 | L123: 0 | M123: =IF(K121>0,"TOTAL WAGE:",0) -> TOTAL WAGE: | N123: =N121+N122 -> 0 | O123: =N123 -> 0 | P123: =IF('Filtered Information'!$B$1>=A121,"NO","YES") -> YES
A124: =IFERROR(VLOOKUP(A121,'Filtered Information'!$A$3:$E$64,5,FALSE),"-") -> - | B124: SHOW | J124: 0 | L124: 0 | P124: =IF('Filtered Information'!$B$1>=A121,"NO","YES") -> YES
B125: M.P. | J125: 0 | K125: =IF(J125>0,K121,) -> 0 | L125: 0 | M125: =IF(K121>0,"UNION 3.5%:",0) -> UNION 3.5%: | N125: =N123*0.035 -> 0 | P125: =IF('Filtered Information'!$B$1>=A121,"NO","YES") -> YES
A126: =A121+1 -> 24 | B126: REG. | J126: 0 | K126: =IFERROR(VLOOKUP(A126,'Filtered Information'!$A$3:$D$64,2,FALSE),"0") -> 0 | L126: 0 | M126: =IF(K126>0,"SUBTOTAL:",0) -> SUBTOTAL: | N126: =SUM(L126:L130) -> 0 | P126: =IF('Filtered Information'!$B$1>=A126,"NO","YES") -> YES
A127: =IFERROR(VLOOKUP(A126,'Filtered Information'!$A$3:$E$66,4,FALSE),"-") -> - | B127: O.T. | J127: 0 | K127: =IF(J127>0,K126*1.5,) -> 0 | L127: 0 | M127: VACATION 8%: | N127: =N126*0.08 -> 0 | P127: =IF('Filtered Information'!$B$1>=A126,"NO","YES") -> YES
A128: =IFERROR(VLOOKUP(A126,'Filtered Information'!$A$3:$E$66,3,FALSE),"-") -> - | B128: D.T. | J128: 0 | K128: =IF(J128>0,K126*2,) -> 0 | L128: 0 | M128: =IF(K126>0,"TOTAL WAGE:",0) -> TOTAL WAGE: | N128: =N126+N127 -> 0 | O128: =N128 -> 0 | P128: =IF('Filtered Information'!$B$1>=A126,"NO","YES") -> YES
A129: =IFERROR(VLOOKUP(A126,'Filtered Information'!$A$3:$E$64,5,FALSE),"-") -> - | B129: SHOW | J129: 0 | L129: 0 | P129: =IF('Filtered Information'!$B$1>=A126,"NO","YES") -> YES
B130: M.P. | J130: 0 | K130: =IF(J130>0,K126,) -> 0 | L130: 0 | M130: =IF(K126>0,"UNION 3.5%:",0) -> UNION 3.5%: | N130: =N128*0.035 -> 0 | P130: =IF('Filtered Information'!$B$1>=A126,"NO","YES") -> YES
A131: =A126+1 -> 25 | B131: REG. | J131: 0 | K131: =IFERROR(VLOOKUP(A131,'Filtered Information'!$A$3:$D$64,2,FALSE),"0") -> 0 | L131: 0 | M131: =IF(K131>0,"SUBTOTAL:",0) -> SUBTOTAL: | N131: =SUM(L131:L135) -> 0 | P131: =IF('Filtered Information'!$B$1>=A131,"NO","YES") -> YES
A132: =IFERROR(VLOOKUP(A131,'Filtered Information'!$A$3:$E$66,4,FALSE),"-") -> - | B132: O.T. | J132: 0 | K132: =IF(J132>0,K131*1.5,) -> 0 | L132: 0 | M132: VACATION 8%: | N132: =N131*0.08 -> 0 | P132: =IF('Filtered Information'!$B$1>=A131,"NO","YES") -> YES
A133: =IFERROR(VLOOKUP(A131,'Filtered Information'!$A$3:$E$66,3,FALSE),"-") -> - | B133: D.T. | J133: 0 | K133: =IF(J133>0,K131*2,) -> 0 | L133: 0 | M133: =IF(K131>0,"TOTAL WAGE:",0) -> TOTAL WAGE: | N133: =N131+N132 -> 0 | O133: =N133 -> 0 | P133: =IF('Filtered Information'!$B$1>=A131,"NO","YES") -> YES
A134: =IFERROR(VLOOKUP(A131,'Filtered Information'!$A$3:$E$64,5,FALSE),"-") -> - | B134: SHOW | J134: 0 | L134: 0 | P134: =IF('Filtered Information'!$B$1>=A131,"NO","YES") -> YES
B135: M.P. | J135: 0 | K135: =IF(J135>0,K131,) -> 0 | L135: 0 | M135: =IF(K131>0,"UNION 3.5%:",0) -> UNION 3.5%: | N135: =N133*0.035 -> 0 | P135: =IF('Filtered Information'!$B$1>=A131,"NO","YES") -> YES
A136: =A131+1 -> 26 | B136: REG. | J136: 0 | K136: =IFERROR(VLOOKUP(A136,'Filtered Information'!$A$3:$D$64,2,FALSE),"0") -> 0 | L136: 0 | M136: =IF(K136>0,"SUBTOTAL:",0) -> SUBTOTAL: | N136: =SUM(L136:L140) -> 0 | P136: =IF('Filtered Information'!$B$1>=A136,"NO","YES") -> YES
A137: =IFERROR(VLOOKUP(A136,'Filtered Information'!$A$3:$E$66,4,FALSE),"-") -> - | B137: O.T. | J137: 0 | K137: =IF(J137>0,K136*1.5,) -> 0 | L137: 0 | M137: VACATION 8%: | N137: =N136*0.08 -> 0 | P137: =IF('Filtered Information'!$B$1>=A136,"NO","YES") -> YES
A138: =IFERROR(VLOOKUP(A136,'Filtered Information'!$A$3:$E$66,3,FALSE),"-") -> - | B138: D.T. | J138: 0 | K138: =IF(J138>0,K136*2,) -> 0 | L138: 0 | M138: =IF(K136>0,"TOTAL WAGE:",0) -> TOTAL WAGE: | N138: =N136+N137 -> 0 | O138: =N138 -> 0 | P138: =IF('Filtered Information'!$B$1>=A136,"NO","YES") -> YES
A139: =IFERROR(VLOOKUP(A136,'Filtered Information'!$A$3:$E$64,5,FALSE),"-") -> - | B139: SHOW | J139: 0 | L139: 0 | P139: =IF('Filtered Information'!$B$1>=A136,"NO","YES") -> YES
B140: M.P. | J140: 0 | K140: =IF(J140>0,K136,) -> 0 | L140: 0 | M140: =IF(K136>0,"UNION 3.5%:",0) -> UNION 3.5%: | N140: =N138*0.035 -> 0 | P140: =IF('Filtered Information'!$B$1>=A136,"NO","YES") -> YES
A141: =A136+1 -> 27 | B141: REG. | J141: 0 | K141: =IFERROR(VLOOKUP(A141,'Filtered Information'!$A$3:$D$64,2,FALSE),"0") -> 0 | L141: 0 | M141: =IF(K141>0,"SUBTOTAL:",0) -> SUBTOTAL: | N141: =SUM(L141:L145) -> 0 | P141: =IF('Filtered Information'!$B$1>=A141,"NO","YES") -> YES
A142: =IFERROR(VLOOKUP(A141,'Filtered Information'!$A$3:$E$66,4,FALSE),"-") -> - | B142: O.T. | J142: 0 | K142: =IF(J142>0,K141*1.5,) -> 0 | L142: 0 | M142: VACATION 8%: | N142: =N141*0.08 -> 0 | P142: =IF('Filtered Information'!$B$1>=A141,"NO","YES") -> YES
A143: =IFERROR(VLOOKUP(A141,'Filtered Information'!$A$3:$E$66,3,FALSE),"-") -> - | B143: D.T. | J143: 0 | K143: =IF(J143>0,K141*2,) -> 0 | L143: 0 | M143: =IF(K141>0,"TOTAL WAGE:",0) -> TOTAL WAGE: | N143: =N141+N142 -> 0 | O143: =N143 -> 0 | P143: =IF('Filtered Information'!$B$1>=A141,"NO","YES") -> YES
A144: =IFERROR(VLOOKUP(A141,'Filtered Information'!$A$3:$E$64,5,FALSE),"-") -> - | B144: SHOW | J144: 0 | L144: 0 | P144: =IF('Filtered Information'!$B$1>=A141,"NO","YES") -> YES
B145: M.P. | J145: 0 | K145: =IF(J145>0,K141,) -> 0 | L145: 0 | M145: =IF(K141>0,"UNION 3.5%:",0) -> UNION 3.5%: | N145: =N143*0.035 -> 0 | P145: =IF('Filtered Information'!$B$1>=A141,"NO","YES") -> YES
A146: =A141+1 -> 28 | B146: REG. | J146: 0 | K146: =IFERROR(VLOOKUP(A146,'Filtered Information'!$A$3:$D$64,2,FALSE),"0") -> 0 | L146: 0 | M146: =IF(K146>0,"SUBTOTAL:",0) -> SUBTOTAL: | N146: =SUM(L146:L150) -> 0 | P146: =IF('Filtered Information'!$B$1>=A146,"NO","YES") -> YES
A147: =IFERROR(VLOOKUP(A146,'Filtered Information'!$A$3:$E$66,4,FALSE),"-") -> - | B147: O.T. | J147: 0 | K147: =IF(J147>0,K146*1.5,) -> 0 | L147: 0 | M147: VACATION 8%: | N147: =N146*0.08 -> 0 | P147: =IF('Filtered Information'!$B$1>=A146,"NO","YES") -> YES
A148: =IFERROR(VLOOKUP(A146,'Filtered Information'!$A$3:$E$66,3,FALSE),"-") -> - | B148: D.T. | J148: 0 | K148: =IF(J148>0,K146*2,) -> 0 | L148: 0 | M148: =IF(K146>0,"TOTAL WAGE:",0) -> TOTAL WAGE: | N148: =N146+N147 -> 0 | O148: =N148 -> 0 | P148: =IF('Filtered Information'!$B$1>=A146,"NO","YES") -> YES
A149: =IFERROR(VLOOKUP(A146,'Filtered Information'!$A$3:$E$64,5,FALSE),"-") -> - | B149: SHOW | J149: 0 | L149: 0 | P149: =IF('Filtered Information'!$B$1>=A146,"NO","YES") -> YES
B150: M.P. | J150: 0 | K150: =IF(J150>0,K146,) -> 0 | L150: 0 | M150: =IF(K146>0,"UNION 3.5%:",0) -> UNION 3.5%: | N150: =N148*0.035 -> 0 | P150: =IF('Filtered Information'!$B$1>=A146,"NO","YES") -> YES
A151: =A146+1 -> 29 | B151: REG. | J151: 0 | K151: =IFERROR(VLOOKUP(A151,'Filtered Information'!$A$3:$D$64,2,FALSE),"0") -> 0 | L151: 0 | M151: =IF(K151>0,"SUBTOTAL:",0) -> SUBTOTAL: | N151: =SUM(L151:L155) -> 0 | P151: =IF('Filtered Information'!$B$1>=A151,"NO","YES") -> YES
A152: =IFERROR(VLOOKUP(A151,'Filtered Information'!$A$3:$E$66,4,FALSE),"-") -> - | B152: O.T. | J152: 0 | K152: =IF(J152>0,K151*1.5,) -> 0 | L152: 0 | M152: VACATION 8%: | N152: =N151*0.08 -> 0 | P152: =IF('Filtered Information'!$B$1>=A151,"NO","YES") -> YES
A153: =IFERROR(VLOOKUP(A151,'Filtered Information'!$A$3:$E$66,3,FALSE),"-") -> - | B153: D.T. | J153: =SUM(C153:I153) -> 0 | K153: =IF(J153>0,K151*2,) -> 0 | L153: =J153*K153 -> 0 | M153: =IF(K151>0,"TOTAL WAGE:",0) -> TOTAL WAGE: | N153: =N151+N152 -> 0 | O153: =N153 -> 0 | P153: =IF('Filtered Information'!$B$1>=A151,"NO","YES") -> YES
A154: =IFERROR(VLOOKUP(A151,'Filtered Information'!$A$3:$E$64,5,FALSE),"-") -> - | B154: SHOW | J154: 0 | L154: 0 | P154: =IF('Filtered Information'!$B$1>=A151,"NO","YES") -> YES
B155: M.P. | J155: 0 | K155: =IF(J155>0,K151,) -> 0 | L155: 0 | M155: =IF(K151>0,"UNION 3.5%:",0) -> UNION 3.5%: | N155: =N153*0.035 -> 0 | P155: =IF('Filtered Information'!$B$1>=A151,"NO","YES") -> YES
A156: =A151+1 -> 30 | B156: REG. | J156: 0 | K156: =IFERROR(VLOOKUP(A156,'Filtered Information'!$A$3:$D$64,2,FALSE),"0") -> 0 | L156: 0 | M156: =IF(K156>0,"SUBTOTAL:",0) -> SUBTOTAL: | N156: =SUM(L156:L160) -> 0 | P156: =IF('Filtered Information'!$B$1>=A156,"NO","YES") -> YES
A157: =IFERROR(VLOOKUP(A156,'Filtered Information'!$A$3:$E$66,4,FALSE),"-") -> - | B157: O.T. | J157: 0 | K157: =IF(J157>0,K156*1.5,) -> 0 | L157: 0 | M157: VACATION 8%: | N157: =N156*0.08 -> 0 | P157: =IF('Filtered Information'!$B$1>=A156,"NO","YES") -> YES
A158: =IFERROR(VLOOKUP(A156,'Filtered Information'!$A$3:$E$66,3,FALSE),"-") -> - | B158: D.T. | J158: 0 | K158: =IF(J158>0,K156*2,) -> 0 | L158: 0 | M158: =IF(K156>0,"TOTAL WAGE:",0) -> TOTAL WAGE: | N158: =N156+N157 -> 0 | O158: =N158 -> 0 | P158: =IF('Filtered Information'!$B$1>=A156,"NO","YES") -> YES
A159: =IFERROR(VLOOKUP(A156,'Filtered Information'!$A$3:$E$64,5,FALSE),"-") -> - | B159: SHOW | J159: 0 | L159: 0 | P159: =IF('Filtered Information'!$B$1>=A156,"NO","YES") -> YES
B160: M.P. | J160: 0 | K160: =IF(J160>0,K156,) -> 0 | L160: 0 | M160: =IF(K156>0,"UNION 3.5%:",0) -> UNION 3.5%: | N160: =N158*0.035 -> 0 | P160: =IF('Filtered Information'!$B$1>=A156,"NO","YES") -> YES
A161: =A156+1 -> 31 | B161: REG. | J161: 0 | K161: =IFERROR(VLOOKUP(A161,'Filtered Information'!$A$3:$D$64,2,FALSE),"0") -> 0 | L161: 0 | M161: =IF(K161>0,"SUBTOTAL:",0) -> SUBTOTAL: | N161: =SUM(L161:L165) -> 0 | P161: =IF('Filtered Information'!$B$1>=A161,"NO","YES") -> YES
A162: =IFERROR(VLOOKUP(A161,'Filtered Information'!$A$3:$E$66,4,FALSE),"-") -> - | B162: O.T. | J162: 0 | K162: =IF(J162>0,K161*1.5,) -> 0 | L162: 0 | M162: VACATION 8%: | N162: =N161*0.08 -> 0 | P162: =IF('Filtered Information'!$B$1>=A161,"NO","YES") -> YES
A163: =IFERROR(VLOOKUP(A161,'Filtered Information'!$A$3:$E$66,3,FALSE),"-") -> - | B163: D.T. | J163: 0 | K163: =IF(J163>0,K161*2,) -> 0 | L163: 0 | M163: =IF(K161>0,"TOTAL WAGE:",0) -> TOTAL WAGE: | N163: =N161+N162 -> 0 | O163: =N163 -> 0 | P163: =IF('Filtered Information'!$B$1>=A161,"NO","YES") -> YES
A164: =IFERROR(VLOOKUP(A161,'Filtered Information'!$A$3:$E$64,5,FALSE),"-") -> - | B164: SHOW | J164: 0 | L164: 0 | P164: =IF('Filtered Information'!$B$1>=A161,"NO","YES") -> YES
B165: M.P. | J165: 0 | K165: =IF(J165>0,K161,) -> 0 | L165: 0 | M165: =IF(K161>0,"UNION 3.5%:",0) -> UNION 3.5%: | N165: =N163*0.035 -> 0 | P165: =IF('Filtered Information'!$B$1>=A161,"NO","YES") -> YES
A166: =A161+1 -> 32 | B166: REG. | J166: 0 | K166: =IFERROR(VLOOKUP(A166,'Filtered Information'!$A$3:$D$64,2,FALSE),"0") -> 0 | L166: 0 | M166: =IF(K166>0,"SUBTOTAL:",0) -> SUBTOTAL: | N166: =SUM(L166:L170) -> 0 | P166: =IF('Filtered Information'!$B$1>=A166,"NO","YES") -> YES
A167: =IFERROR(VLOOKUP(A166,'Filtered Information'!$A$3:$E$66,4,FALSE),"-") -> - | B167: O.T. | J167: 0 | K167: =IF(J167>0,K166*1.5,) -> 0 | L167: 0 | M167: VACATION 8%: | N167: =N166*0.08 -> 0 | P167: =IF('Filtered Information'!$B$1>=A166,"NO","YES") -> YES
A168: =IFERROR(VLOOKUP(A166,'Filtered Information'!$A$3:$E$66,3,FALSE),"-") -> - | B168: D.T. | J168: 0 | K168: =IF(J168>0,K166*2,) -> 0 | L168: 0 | M168: =IF(K166>0,"TOTAL WAGE:",0) -> TOTAL WAGE: | N168: =N166+N167 -> 0 | O168: =N168 -> 0 | P168: =IF('Filtered Information'!$B$1>=A166,"NO","YES") -> YES
A169: =IFERROR(VLOOKUP(A166,'Filtered Information'!$A$3:$E$64,5,FALSE),"-") -> - | B169: SHOW | J169: 0 | L169: 0 | P169: =IF('Filtered Information'!$B$1>=A166,"NO","YES") -> YES
B170: M.P. | J170: 0 | K170: =IF(J170>0,K166,) -> 0 | L170: 0 | M170: =IF(K166>0,"UNION 3.5%:",0) -> UNION 3.5%: | N170: =N168*0.035 -> 0 | P170: =IF('Filtered Information'!$B$1>=A166,"NO","YES") -> YES
A171: =A166+1 -> 33 | B171: REG. | J171: 0 | K171: =IFERROR(VLOOKUP(A171,'Filtered Information'!$A$3:$D$64,2,FALSE),"0") -> 0 | L171: 0 | M171: =IF(K171>0,"SUBTOTAL:",0) -> SUBTOTAL: | N171: =SUM(L171:L175) -> 0 | P171: =IF('Filtered Information'!$B$1>=A171,"NO","YES") -> YES
A172: =IFERROR(VLOOKUP(A171,'Filtered Information'!$A$3:$E$66,4,FALSE),"-") -> - | B172: O.T. | J172: 0 | K172: =IF(J172>0,K171*1.5,) -> 0 | L172: 0 | M172: VACATION 8%: | N172: =N171*0.08 -> 0 | P172: =IF('Filtered Information'!$B$1>=A171,"NO","YES") -> YES
A173: =IFERROR(VLOOKUP(A171,'Filtered Information'!$A$3:$E$66,3,FALSE),"-") -> - | B173: D.T. | J173: 0 | K173: =IF(J173>0,K171*2,) -> 0 | L173: 0 | M173: =IF(K171>0,"TOTAL WAGE:",0) -> TOTAL WAGE: | N173: =N171+N172 -> 0 | O173: =N173 -> 0 | P173: =IF('Filtered Information'!$B$1>=A171,"NO","YES") -> YES
A174: =IFERROR(VLOOKUP(A171,'Filtered Information'!$A$3:$E$64,5,FALSE),"-") -> - | B174: SHOW | J174: 0 | L174: 0 | P174: =IF('Filtered Information'!$B$1>=A171,"NO","YES") -> YES
B175: M.P. | J175: 0 | K175: =IF(J175>0,K171,) -> 0 | L175: 0 | M175: =IF(K171>0,"UNION 3.5%:",0) -> UNION 3.5%: | N175: =N173*0.035 -> 0 | P175: =IF('Filtered Information'!$B$1>=A171,"NO","YES") -> YES
A176: =A171+1 -> 34 | B176: REG. | J176: 0 | K176: =IFERROR(VLOOKUP(A176,'Filtered Information'!$A$3:$D$64,2,FALSE),"0") -> 0 | L176: 0 | M176: =IF(K176>0,"SUBTOTAL:",0) -> SUBTOTAL: | N176: =SUM(L176:L180) -> 0 | P176: =IF('Filtered Information'!$B$1>=A176,"NO","YES") -> YES
A177: =IFERROR(VLOOKUP(A176,'Filtered Information'!$A$3:$E$66,4,FALSE),"-") -> - | B177: O.T. | J177: 0 | K177: =IF(J177>0,K176*1.5,) -> 0 | L177: 0 | M177: VACATION 8%: | N177: =N176*0.08 -> 0 | P177: =IF('Filtered Information'!$B$1>=A176,"NO","YES") -> YES
A178: =IFERROR(VLOOKUP(A176,'Filtered Information'!$A$3:$E$66,3,FALSE),"-") -> - | B178: D.T. | J178: 0 | K178: =IF(J178>0,K176*2,) -> 0 | L178: 0 | M178: =IF(K176>0,"TOTAL WAGE:",0) -> TOTAL WAGE: | N178: =N176+N177 -> 0 | O178: =N178 -> 0 | P178: =IF('Filtered Information'!$B$1>=A176,"NO","YES") -> YES
A179: =IFERROR(VLOOKUP(A176,'Filtered Information'!$A$3:$E$64,5,FALSE),"-") -> - | B179: SHOW | J179: 0 | L179: 0 | P179: =IF('Filtered Information'!$B$1>=A176,"NO","YES") -> YES
B180: M.P. | J180: 0 | K180: =IF(J180>0,K176,) -> 0 | L180: 0 | M180: =IF(K176>0,"UNION 3.5%:",0) -> UNION 3.5%: | N180: =N178*0.035 -> 0 | P180: =IF('Filtered Information'!$B$1>=A176,"NO","YES") -> YES
A181: =A176+1 -> 35 | B181: REG. | J181: 0 | K181: =IFERROR(VLOOKUP(A181,'Filtered Information'!$A$3:$D$64,2,FALSE),"0") -> 0 | L181: 0 | M181: =IF(K181>0,"SUBTOTAL:",0) -> SUBTOTAL: | N181: =SUM(L181:L185) -> 0 | P181: =IF('Filtered Information'!$B$1>=A181,"NO","YES") -> YES
A182: =IFERROR(VLOOKUP(A181,'Filtered Information'!$A$3:$E$66,4,FALSE),"-") -> - | B182: O.T. | J182: 0 | K182: =IF(J182>0,K181*1.5,) -> 0 | L182: 0 | M182: VACATION 8%: | N182: =N181*0.08 -> 0 | P182: =IF('Filtered Information'!$B$1>=A181,"NO","YES") -> YES
A183: =IFERROR(VLOOKUP(A181,'Filtered Information'!$A$3:$E$66,3,FALSE),"-") -> - | B183: D.T. | J183: 0 | K183: =IF(J183>0,K181*2,) -> 0 | L183: 0 | M183: =IF(K181>0,"TOTAL WAGE:",0) -> TOTAL WAGE: | N183: =N181+N182 -> 0 | O183: =N183 -> 0 | P183: =IF('Filtered Information'!$B$1>=A181,"NO","YES") -> YES
A184: =IFERROR(VLOOKUP(A181,'Filtered Information'!$A$3:$E$64,5,FALSE),"-") -> - | B184: SHOW | J184: 0 | L184: 0 | P184: =IF('Filtered Information'!$B$1>=A181,"NO","YES") -> YES
B185: M.P. | J185: =SUM(C185:I185) -> 0 | K185: =IF(J185>0,K181,) -> 0 | L185: =J185*K185 -> 0 | M185: =IF(K181>0,"UNION 3.5%:",0) -> UNION 3.5%: | N185: =N183*0.035 -> 0 | P185: =IF('Filtered Information'!$B$1>=A181,"NO","YES") -> YES
A186: =A181+1 -> 36 | B186: REG. | J186: 0 | K186: =IFERROR(VLOOKUP(A186,'Filtered Information'!$A$3:$D$64,2,FALSE),"0") -> 0 | L186: 0 | M186: =IF(K186>0,"SUBTOTAL:",0) -> SUBTOTAL: | N186: =SUM(L186:L190) -> 0 | P186: =IF('Filtered Information'!$B$1>=A186,"NO","YES") -> YES
A187: =IFERROR(VLOOKUP(A186,'Filtered Information'!$A$3:$E$66,4,FALSE),"-") -> - | B187: O.T. | J187: 0 | K187: =IF(J187>0,K186*1.5,) -> 0 | L187: 0 | M187: VACATION 8%: | N187: =N186*0.08 -> 0 | P187: =IF('Filtered Information'!$B$1>=A186,"NO","YES") -> YES
A188: =IFERROR(VLOOKUP(A186,'Filtered Information'!$A$3:$E$66,3,FALSE),"-") -> - | B188: D.T. | J188: 0 | K188: =IF(J188>0,K186*2,) -> 0 | L188: 0 | M188: =IF(K186>0,"TOTAL WAGE:",0) -> TOTAL WAGE: | N188: =N186+N187 -> 0 | O188: =N188 -> 0 | P188: =IF('Filtered Information'!$B$1>=A186,"NO","YES") -> YES
A189: =IFERROR(VLOOKUP(A186,'Filtered Information'!$A$3:$E$64,5,FALSE),"-") -> - | B189: SHOW | J189: 0 | L189: 0 | P189: =IF('Filtered Information'!$B$1>=A186,"NO","YES") -> YES
B190: M.P. | J190: 0 | K190: =IF(J190>0,K186,) -> 0 | L190: 0 | M190: =IF(K186>0,"UNION 3.5%:",0) -> UNION 3.5%: | N190: =N188*0.035 -> 0 | P190: =IF('Filtered Information'!$B$1>=A186,"NO","YES") -> YES
A191: =A186+1 -> 37 | B191: REG. | J191: =SUM(C191:I191) -> 0 | K191: =IFERROR(VLOOKUP(A191,'Filtered Information'!$A$3:$D$64,2,FALSE),"0") -> 0 | L191: =J191*K191 -> 0 | M191: =IF(K191>0,"SUBTOTAL:",0) -> SUBTOTAL: | N191: =SUM(L191:L195) -> 0 | P191: =IF('Filtered Information'!$B$1>=A191,"NO","YES") -> YES
A192: =IFERROR(VLOOKUP(A191,'Filtered Information'!$A$3:$E$66,4,FALSE),"-") -> - | B192: O.T. | J192: 0 | K192: =IF(J192>0,K191*1.5,) -> 0 | L192: 0 | M192: VACATION 8%: | N192: =N191*0.08 -> 0 | P192: =IF('Filtered Information'!$B$1>=A191,"NO","YES") -> YES
A193: =IFERROR(VLOOKUP(A191,'Filtered Information'!$A$3:$E$66,3,FALSE),"-") -> - | B193: D.T. | J193: 0 | K193: =IF(J193>0,K191*2,) -> 0 | L193: 0 | M193: =IF(K191>0,"TOTAL WAGE:",0) -> TOTAL WAGE: | N193: =N191+N192 -> 0 | O193: =N193 -> 0 | P193: =IF('Filtered Information'!$B$1>=A191,"NO","YES") -> YES
A194: =IFERROR(VLOOKUP(A191,'Filtered Information'!$A$3:$E$64,5,FALSE),"-") -> - | B194: SHOW | J194: 0 | L194: 0 | P194: =IF('Filtered Information'!$B$1>=A191,"NO","YES") -> YES
B195: M.P. | J195: 0 | K195: =IF(J195>0,K191,) -> 0 | L195: 0 | M195: =IF(K191>0,"UNION 3.5%:",0) -> UNION 3.5%: | N195: =N193*0.035 -> 0 | P195: =IF('Filtered Information'!$B$1>=A191,"NO","YES") -> YES
A196: =A191+1 -> 38 | B196: REG. | J196: 0 | K196: =IFERROR(VLOOKUP(A196,'Filtered Information'!$A$3:$D$64,2,FALSE),"0") -> 0 | L196: 0 | M196: =IF(K196>0,"SUBTOTAL:",0) -> SUBTOTAL: | N196: =SUM(L196:L200) -> 0 | P196: =IF('Filtered Information'!$B$1>=A196,"NO","YES") -> YES
A197: =IFERROR(VLOOKUP(A196,'Filtered Information'!$A$3:$E$66,4,FALSE),"-") -> - | B197: O.T. | J197: 0 | K197: =IF(J197>0,K196*1.5,) -> 0 | L197: 0 | M197: VACATION 8%: | N197: =N196*0.08 -> 0 | P197: =IF('Filtered Information'!$B$1>=A196,"NO","YES") -> YES
A198: =IFERROR(VLOOKUP(A196,'Filtered Information'!$A$3:$E$66,3,FALSE),"-") -> - | B198: D.T. | J198: 0 | K198: =IF(J198>0,K196*2,) -> 0 | L198: 0 | M198: =IF(K196>0,"TOTAL WAGE:",0) -> TOTAL WAGE: | N198: =N196+N197 -> 0 | O198: =N198 -> 0 | P198: =IF('Filtered Information'!$B$1>=A196,"NO","YES") -> YES
A199: =IFERROR(VLOOKUP(A196,'Filtered Information'!$A$3:$E$64,5,FALSE),"-") -> - | B199: SHOW | J199: 0 | L199: 0 | P199: =IF('Filtered Information'!$B$1>=A196,"NO","YES") -> YES
B200: M.P. | J200: 0 | K200: =IF(J200>0,K196,) -> 0 | L200: 0 | M200: =IF(K196>0,"UNION 3.5%:",0) -> UNION 3.5%: | N200: =N198*0.035 -> 0 | P200: =IF('Filtered Information'!$B$1>=A196,"NO","YES") -> YES
... 136 more rows
